Workbook

Sheet INICIO
F1: Consumer Finance
F3: Simuladores de Cálculo
D7: Préstamo Cuotas Regulares | F7: Leasing
D9: Préstamo con Cuota Plus
D11: Préstamo Selección
D13: Préstamo con Cuotas Irregulares | F13: Doble Tipo 12.0 VN y VSN
D15: Préstamo con Carencia

Sheet TAE (hidden)
A1: volver
E4: Consumer Finance
B5: CALCULADORA T.A.E.
B7: Principal
B9: T.I.N. Anual (1) | D9: Plazo
B11: Seguros
B13: Com. Apert. | D13: Com. Estudio
B15: T.A.E | C15: =+IF(ISERROR(((1+(D15/12))^12)-1),"",((1+(D15/12))^12)-1) ->  | D15: =RATE(E9,PMT(C9/12,E9,-1,0,0),-1+C13+E13,0,0)*12 ->  | E15: =+IF(J28="X","El Seguro de Siniestro total no se puede contratar para plazos superiores a 84 meses. Para este plazo, por favor seleccione la opción Seguro PPP unicamente","") -> 
B17: (1) Condiciones financieras de la Tarifa correspondiente al Colaborador
B18: Cálculo válido para Cuotas Regulares
F26: 1 | H26: 1 | J26: =+IF(AND((H26=2),(E9>84)),"xx","") -> 
F27: Financiadas | H27: PPP | J27: =+IF(AND((H26=3),(E9>84)),"xx","") -> 
F28: Al Contado | H28: Siniestro Total | J28: =+IF(OR((J26="xx"),(J27="xx")),"X","") -> 
H29: PPP+ST
H30: Seg T/X(vida+desempl)
H31: SegT/X + D
H32: Vehic Sust
H33: Vehic sust+D
H34: Sin Seguros
C36: Principal | D36: =+C7 -> 0
C37: Seguros | D37: =INDEX(I39:I46,H26,1) -> 
C38: CAP | D38: =+IF(D36=0,"",IF(F26=1,(D36+D37)*C13,0)) -> 
C39: Financiado | D39: =+D36+D37+D38 ->  | F39: PPP | G39: =INDEX(SEG!$A$3:$E$122,MATCH($E$9,SEG!$A$3:$A$122,1),2) ->  | I39: =+G39*$D$36 -> 
C40: Plazo | D40: =+IF(E9="","",E9) ->  | F40: Siniestro Total | G40: =INDEX(SEG!$A$3:$E$122,MATCH($E$9,SEG!$A$3:$A$122,1),3) -> 
C41: Cuotas | D41: =+IF(C7="","",PMT($C$9/12,E9,-D39,0,0)) ->  | F41: PPP+Siniestro Total | G41: =+G39+G40 -> 
F42: Seg T/X(vida+desempl) | G42: =INDEX(SEG!$A$3:$E$122,MATCH($E$9,SEG!$A$3:$A$122,1),5) -> 
F43: SegT/X + D | G43: =+G42+G40 -> 
F44: Vehic Sust | G44: =INDEX(SEG!$A$3:$F$122,MATCH($E$9,SEG!$A$3:$A$122,1),6) ->  | I44: =+G44 -> 
F45: Vehic sust+D | I45: =+I40+I44 -> 
F46: Sin Seguros | G46: 0 | I46: 0

Sheet CUOTAS REGULARES
A1: volver
F3: Financia
B5: SIMULADOR CUOTAS CONSTANTES v9
B7: Principal
B9: T.I.N. Anual (1) | C9: 0.0399 | D9: Plazo
B11: Seguros (2) | E11: =IF(AND(E9<H22,OR(J29=4,J29=5,J29=8,J29=9,J29=10,J29=11)),"¡¡¡Seguro tipo Y no contratable por plazo, Cambie de producto!!!","") -> 
B13: Com. Apert. | C13: 0.035 | D13: Com. Estudio
B15: =IF(C13="","",IF(C44<150,"Aplica cap mínimo","")) -> Aplica cap mínimo
B16: Importe Total Financiado | D16: =+IF(ISERROR(E50),"",E50) -> 150
B18: Importe de las Cuotas | D18: =+E52 ->  | E18: =IF(D18<20,"Cuota mínima 20€","") -> 
C19: TAE | D19: =+D150 -> 
B21: (1) Condiciones financieras de la Tarifa correspondiente al Colaborador
B22: (2) En operaciones a partir de 84 meses el Seguro PPP es obligatorio. Plazo minimo segruo TIPO Y (meses)
B23: (2 bis) El Seguro de SiniEstro Total sólo es contrtable ne operaciones hasta 84 meses
G29: 1 | I29: 13 | J29: =IF(OR(I29=4,I29=5,I29=8,I29=9,I29=10,I29=11),I29,0) -> 0 | K29: =+IF(AND((I29=2),(E9>84)),"xx","") -> 
G30: Financiadas | I30: PPP (Q) | K30: =+IF(AND((I29=3),(E9>84)),"xx","") -> 
G31: Al Contado | I31: SINIESTRO TOTAL (D) | K31: =+IF(OR((K29="xx"),(K30="xx")),"X","") -> 
I32: PLATINO: PPP+Sustitc. + R. Carnet
I33: DORADO:Sustitc.+ R.Carnet
I34: PPP+ST
I35: PPP+ST+Y
I36: TITANIO: PPP+ Y
I37: DESEMPLEO (T/X)
I38: DESEMPLEO (T/X)+ SINIESTRO TOTAL (D)
I39: DESEMPLEO (T/X)+ST+Y
I40: DESEMPLEO (T/X)+VEHÍCULO DE SUSTITUCIÓN (Y)
C41: Min CAP | D41: 150 | I41: VEHÍCULO DE SUSTITUCIÓN (Y) +SINIESTRO TOTAL (D)
C42: Min CEST | D42: =+IF($E$13=0,0,30.05) -> 0 | I42: SIN SEGUROS
I43: VEHÍCULO DE SUSTITUCIÒN (Y)
B44: CAP | C44: =C13*C7 -> 0 | I44: RETIRADA DE CARNET (W)
I45: EXTENSIÓN DE GARANTÍA VO (7)
D46: Principal | E46: =+C7 -> 0 | I46: PPP+RET.CARNET
D47: Seguros | E47: =(INDEX(J73:J92,I29,1)) -> 0 | I47: DESEMPLEO + RET.CARNET
C48: =+IF($E$46=0,"",IF(G$29=1,($E$46+$E$47)*$C$13,0)) ->  | D48: CAP | E48: =+IF((C13*($E$46+$E$47))<D41,D41,C13*($E$46+$E$47)) -> 150 | F48: =IF(C48<E48,"Importe minimo cap 150,00 €","") ->  | I48: PPP-SENIOR (M)
C49: =+IF($E$46=0,"",IF(G$29=1,($E$46+$E$47)*$E$13,0)) ->  | D49: CEST | E49: =+IF((C14*($E$46+$E$47))<D42,D42,C14*($E$46+$E$47)) -> 0 | I49: PPP-EXTENSIÓN DE GARANTÍA
C50: =IF(E13>0,C49,"") ->  | D50: Financiado | E50: =+IF(G29=1,E46+E47+E48+E49,E46+E47) -> 150
D51: Plazo | E51: =+IF(E9="","",E9) -> 
D52: Cuotas | E52: =IF(ISERROR(PMT($C$9/12,E51,-E50,0,0)),"",PMT($C$9/12,E51,-E50,0,0)) -> 
G73: PPP | H73: =INDEX(SEG!$A$3:$J$122,MATCH($E$9,SEG!$A$3:$A$122,1),2) ->  | J73: =+H73*$E$46 -> 
G74: Siniestro Total | H74: =INDEX(SEG!$A$3:$J$122,MATCH($E$9,SEG!$A$3:$A$122,1),3) -> 
G75: PLATINO: PPP+Sustitc. + R. Carnet | H75: =+H73+H86+H87 -> 
G76: DORADO: Sustitc. + R.C. | H76: =+H86+H87 -> 0 | J76: 0
G77: PPP+Siniestro Total | H77: =+H73+H74 -> 
G78: PPP+ST+Y | H78: =+H73+H74+H86 -> 
G79: TITANIO: PPP+Y | H79: =+H73+H86 -> 
G80: Desempleo | H80: =INDEX(SEG!$A$3:$J$122,MATCH($E$9,SEG!$A$3:$A$122,1),5) -> 
G81: Desemp+ST | H81: =+H80+H74 -> 
G82: Desempleo+ST+Y | H82: =H80+H74+H86 -> 
G83: Desempleo+Y | H83: =H80+H86 -> 
G84: Vehic Sust+ST | H84: =+H86+H74 -> 
G85: Sin Seguros | H85: 0 | J85: 0
G86: Vehic Sustituc (Y) | H86: =IF(E9>11,INDEX(SEG!$A$3:$J$122,MATCH($E$9,SEG!$A$3:$A$122,1),6),0) -> 0 | J86: =+H86*E46 -> 0
G87: Retirada Carnet | H87: =IF(E9>11,INDEX(SEG!$A$3:$J$122,MATCH($E$9,SEG!$A$3:$A$122,1),7),0) -> 0 | J87: =+H87*E46 -> 0
G88: EG VO | H88: =IF(E9>11,INDEX(SEG!$A$3:$J$122,MATCH($E$9,SEG!$A$3:$A$122,1),8),0) -> 0 | J88: =+H88 -> 0
G89: PPP+RETIRADA DE CARNET | H89: =+H73+H87 ->  | J89: =+H89*$E$46 -> 
G90: DESEMPLEO+RET.CARNET | H90: =+H80+H87 ->  | J90: =+H90*$E$46 -> 
G91: PPP-SENIOR (M) | H91: =INDEX(SEG!$A$3:$J$122,MATCH($E$9,SEG!$A$3:$A$122,1),10) ->  | J91: =+H91*$E$46 -> 
G92: PPP-EXTENSIÓN DE GARANTÍA | H92: =INDEX(SEG!$A$3:$J$122,MATCH($E$9,SEG!$A$3:$A$122,1),2) ->  | J92: =+H92*$E$46+J88 -> 
C150: TAE | D150: =+IF(ISERROR((((1+((IRR($D$152:$D$272,0.0025)*12)/12))^12)-1)),"",(((1+((IRR($D$152:$D$272,0.0025)*12)/12))^12)-1)) -> 
C151: tir | D151: =+IRR($D$152:$D$272,0.0025)*12 -> 
C152: 0 | D152: =IF(G29=2,-C7-E47+($E$48+$E$49),-C7-E47) -> 0
C153: 1 | D153: =+IF($E$9>(C153-1),$D$18,0) -> 0
C154: 2 | D154: =+IF($E$9>(C154-1),$D$18,0) -> 0
C155: 3 | D155: 0
C156: 4 | D156: 0
C157: 5 | D157: 0
C158: 6 | D158: 0
C159: 7 | D159: 0
C160: 8 | D160: 0
C161: 9 | D161: 0
C162: 10 | D162: 0
C163: 11 | D163: 0
C164: 12 | D164: 0
C165: 13 | D165: 0
C166: 14 | D166: 0
C167: 15 | D167: 0
C168: 16 | D168: 0
C169: 17 | D169: 0
C170: 18 | D170: 0
C171: 19 | D171: 0
C172: 20 | D172: 0
C173: 21 | D173: 0
C174: 22 | D174: 0
C175: 23 | D175: 0
C176: 24 | D176: 0
C177: 25 | D177: 0
C178: 26 | D178: 0
C179: 27 | D179: 0
C180: 28 | D180: 0
C181: 29 | D181: 0
C182: 30 | D182: 0
C183: 31 | D183: 0
C184: 32 | D184: 0
C185: 33 | D185: 0
C186: 34 | D186: 0
C187: 35 | D187: 0
C188: 36 | D188: 0
C189: 37 | D189: 0
C190: 38 | D190: 0
C191: 39 | D191: 0
C192: 40 | D192: 0
C193: 41 | D193: 0
C194: 42 | D194: 0
C195: 43 | D195: 0
C196: 44 | D196: 0
C197: 45 | D197: 0
C198: 46 | D198: 0
C199: 47 | D199: 0
C200: 48 | D200: 0
C201: 49 | D201: 0
C202: 50 | D202: 0
C203: 51 | D203: 0
C204: 52 | D204: 0
C205: 53 | D205: 0
C206: 54 | D206: 0
C207: 55 | D207: 0
C208: 56 | D208: 0
C209: 57 | D209: 0
C210: 58 | D210: 0
C211: 59 | D211: 0
C212: 60 | D212: 0
C213: 61 | D213: 0
C214: 62 | D214: 0
C215: 63 | D215: 0
C216: 64 | D216: 0
C217: 65 | D217: 0
C218: 66 | D218: =+IF($E$9>(C218-1),$D$18,0) -> 0
C219: 67 | D219: 0
C220: 68 | D220: 0
C221: 69 | D221: 0
C222: 70 | D222: 0
C223: 71 | D223: 0
C224: 72 | D224: 0
C225: 73 | D225: 0
C226: 74 | D226: 0
C227: 75 | D227: 0
C228: 76 | D228: 0
C229: 77 | D229: 0
C230: 78 | D230: 0
C231: 79 | D231: 0
C232: 80 | D232: 0
C233: 81 | D233: 0
C234: 82 | D234: 0
C235: 83 | D235: 0
C236: 84 | D236: 0
C237: 85 | D237: 0
C238: 86 | D238: 0
C239: 87 | D239: 0
C240: 88 | D240: 0
C241: 89 | D241: 0
C242: 90 | D242: 0
C243: 91 | D243: 0
C244: 92 | D244: 0
C245: 93 | D245: 0
C246: 94 | D246: 0
C247: 95 | D247: 0
C248: 96 | D248: 0
C249: 97 | D249: 0
C250: 98 | D250: 0
C251: 99 | D251: 0
C252: 100 | D252: 0
C253: 101 | D253: 0
C254: 102 | D254: 0
C255: 103 | D255: 0
C256: 104 | D256: 0
C257: 105 | D257: 0
C258: 106 | D258: 0
C259: 107 | D259: 0
C260: 108 | D260: 0
C261: 109 | D261: 0
C262: 110 | D262: 0
C263: 111 | D263: 0
C264: 112 | D264: 0
C265: 113 | D265: 0
C266: 114 | D266: 0
C267: 115 | D267: 0
C268: 116 | D268: 0
C269: 117 | D269: 0
C270: 118 | D270: 0
C271: 119 | D271: 0
C272: 120 | D272: 0

Sheet CUOTA PLUS
B1: volver
F2: Consumer Finance
B4: SIMULADOR CÁLCULO CUOTA PLUS
B8: =+IF(J62=2,"P.V.P. Vehículo","") -> 
B10: Principal
B12: T.I.N. Anual | E12: Plazo
B14: Seguro
B16: Com. Apert. | D16: Com. Estudio
C17: =IF(C16="","",IF(B48<150,"Aplica cap mínimo","")) -> 
B18: Importe Total Financiado | D18: =+D50 -> 150
B20: =+"Cuotas de las 1 a la "&D51-1 -> Cuotas de las 1 a la 59 | D20: =+D54 ->  | E20: =+IF((((C12/12)*D50)*1.05)>D20,"OPERACIÓN INVIABLE: Eleve el Principal o varíe el Plazo","") -> 
B22: =+"Cuota nº "&D51 -> Cuota nº 60 | D22: =+E52 -> 52.5
C23: TAE | D23: =+C94 -> -0.9999966208
H24: 1 | I24: =IF(OR(H24=4,H24=5,H24=8,H24=9,H24=10,H24=11),H24,0) -> 0
H25: PPP
H26: Siniestro Total
H27: PLATINO: PPP+Sustitc. + R. Carnet
H28: DORADO:Sustitc.+ R.Carnet
H29: PPP+ST
H30: PPP+ST+Y
H31: TITANIO: PPP+ Y
H32: Desempleo (T/X)
H33: Desempleo+ST
H34: Desempleo+ST+Y
H35: Desempleo+Y
C36: 3 | F36: 1 | H36: Vehic Sustituc+ST
C37: 36 | D37: 0.45 | F37: Financiadas | H37: Sin Seguros
C38: 48 | D38: 0.4 | F38: Al Contado | H38: Vehic Sustituc (Y)
C39: 60 | D39: 0.35 | H39: Retirada Carnet
H40: EG VO
H41: JADE VO (PPP+EG VO)
H42: Desempleo + PPP + EG VO
B43: Min CAP | C43: 150 | H43: PPP-SENIOR(M)
B44: Min CEST | C44: 30.05
C46: Principal | D46: =+C10 -> 0
C47: Seguro | D47: =INDEX(L62:L80,H24,1) -> 0
B48: =(D46+D47)*(C16) -> 0 | C48: CAP | D48: =+IF(SUM($D$46:$D$47)*($C$16)<$C$43,$C$43,SUM($D$46:$D$47)*($C$16)) -> 150
B49: =+(D46+D47)*(E16) -> 0 | C49: CEST | D49: =+IF($E$16=0,0,IF(SUM($D$46:$D$47)*($E$16)<$C$44,$C$44,SUM($D$46:$D$47)*($E$16))) -> 0
B50: =IF(E16>0,B49,"") ->  | C50: Financiado | D50: =+IF(F36=1,SUM(D46:D49),SUM(D46:D47)) -> 150
C51: Plazo | D51: =INDEX(C37:C39,C36,1) -> 60
C52: Cuota Plus | D52: =INDEX(D37:D39,C36,1) -> 0.35 | E52: =+IF(D50=0,"",D52*D18) -> 52.5
C53: =+"RV "&D51-1 -> RV 59 | D53: =-ROUND(PV(C12/12,1,E52,0,0),2) -> 52.5
C54: Resto Cuotas | D54: =IF(D46=0,"",PMT(C12/12,D51-1,-D50,D53,0)) -> 
E59: 30/04/2013
H62: PPP | I62: =INDEX(SEG!$A$3:$J$122,MATCH($D$51,SEG!$A$3:$A$122,1),2) -> 0.0531974 | J62: 1 | L62: =+I62*$D$46 -> 0
H63: Siniestro Total | I63: =INDEX(SEG!$A$3:$J$122,MATCH($D$51,SEG!$A$3:$A$122,1),3) -> 0.053407 | L63: 0
H64: PLATINO: PPP+Sustitc. + R. Carnet | I64: =+I62+I75+I76 -> 0.0893424 | L64: 0
H65: DORADO: Sustitc. + R.C. | I65: =I75+I76 -> 0.036145 | L65: 0
H66: PPP+Siniestro Total | I66: =+I62+I63 -> 0.1066044 | L66: 0
H67: PPP+ST+Y | I67: =+I62+I63+I75 -> 0.1254444 | L67: 0
H68: TITANIO: PPP+Y | I68: =I62+I75 -> 0.0720374 | L68: 0
H69: Desempleo | I69: =INDEX(SEG!$A$3:$J$122,MATCH($D$51,SEG!$A$3:$A$122,1),5) -> 0.08879108 | L69: 0
H70: Desemp+ST | I70: =I69+I63 -> 0.14219808 | L70: 0
H71: Desempleo+ST+Y | I71: =I69+I63+I75 -> 0.16103808 | L71: 0
H72: Desempleo+Y | I72: =I75+I69 -> 0.10763108 | L72: 0
H73: Vehic Sust+ST | I73: =I75+I63 -> 0.072247 | L73: 0
H74: Sin Seguros | L74: 0
H75: Vehic Sustituc (Y) | I75: =INDEX(SEG!$A$3:$J$122,MATCH($D$51,SEG!$A$3:$A$122,1),6) -> 0.01884 | L75: =+I75*$D$46 -> 0
H76: Retirada Carnet | I76: =INDEX(SEG!$A$3:$J$122,MATCH($D$51,SEG!$A$3:$A$122,1),7) -> 0.017305 | L76: =+I76*$D$46 -> 0
H77: EG VO | I77: =INDEX(SEG!$A$3:$J$122,MATCH($D$51,SEG!$A$3:$A$122,1),8) -> 257.51 | L77: =+I77 -> 257.51
H78: JADE VO (PPP+EG VO) | I78: =I62 -> 0.0531974 | L78: =(+I78*$D$46)+L77 -> 257.51
H79: Desempleo + PPP + EG VO | I79: =I69 -> 0.08879108 | L79: =(+I79*$D$46)+L77 -> 257.51
H80: PPP-SENIOR(M) | I80: =INDEX(SEG!$A$3:$J$122,MATCH($D$51,SEG!$A$3:$A$122,1),10) -> 0.1249397 | L80: =+I80*$D$46 -> 0
B94: TAE | C94: =+IF(ISERROR((((1+((IRR($C$96:$C$216,0.0025)*12)/12))^12)-1)),"",(((1+((IRR($C$96:$C$2161,0.0025)*12)/12))^12)-1)) -> -0.9999966208
B95: tir | C95: =+IRR($C$96:$C$2161,0.0025)*12 -> -7.8
B96: 0 | C96: =+IF(F36=1,-D18,-D18+D48+D49) -> -150
B97: 1 | C97: =+IF($D$51>B97,$D$54,IF($D$51=B97,$E$52,0)) -> 
B98: 2 | C98: =+IF($D$51>B98,$D$54,IF($D$51=B98,$E$52,0)) -> 
B99: 3
B100: 4
B101: 5
B102: 6
B103: 7
B104: 8
B105: 9
B106: 10
B107: 11
B108: 12
B109: 13
B110: 14
B111: 15
B112: 16
B113: 17
B114: 18
B115: 19
B116: 20
B117: 21
B118: 22
B119: 23
B120: 24
B121: 25
B122: 26
B123: 27
B124: 28
B125: 29
B126: 30
B127: 31
B128: 32
B129: 33
B130: 34
B131: 35
B132: 36
B133: 37
B134: 38
B135: 39
B136: 40
B137: 41
B138: 42
B139: 43
B140: 44
B141: 45
B142: 46
B143: 47
B144: 48
B145: 49
B146: 50
B147: 51
B148: 52
B149: 53
B150: 54
B151: 55
B152: 56
B153: 57
B154: 58
B155: 59
B156: 60 | C156: 52.5
B157: 61 | C157: 0
B158: 62 | C158: 0
B159: 63 | C159: 0
B160: 64 | C160: 0
B161: 65 | C161: 0
B162: 66 | C162: =+IF($D$51>B162,$D$54,IF($D$51=B162,$E$52,0)) -> 0
B163: 67 | C163: 0
B164: 68 | C164: 0
B165: 69 | C165: 0
B166: 70 | C166: 0
B167: 71 | C167: 0
B168: 72 | C168: 0
B169: 73 | C169: 0
B170: 74 | C170: 0
B171: 75 | C171: 0
B172: 76 | C172: 0
B173: 77 | C173: 0
B174: 78 | C174: 0
B175: 79 | C175: 0
B176: 80 | C176: 0
B177: 81 | C177: 0
B178: 82 | C178: 0
B179: 83 | C179: 0
B180: 84 | C180: 0
B181: 85 | C181: 0
B182: 86 | C182: 0
B183: 87 | C183: 0
B184: 88 | C184: 0
B185: 89 | C185: 0
B186: 90 | C186: 0
B187: 91 | C187: 0
B188: 92 | C188: 0
B189: 93 | C189: 0
B190: 94 | C190: 0
B191: 95 | C191: 0
B192: 96 | C192: 0
B193: 97 | C193: 0
B194: 98 | C194: 0
B195: 99 | C195: 0
B196: 100 | C196: 0
B197: 101 | C197: 0
B198: 102 | C198: 0
B199: 103 | C199: 0
B200: 104 | C200: 0
B201: 105 | C201: 0
B202: 106 | C202: 0
B203: 107 | C203: 0
B204: 108 | C204: 0
B205: 109 | C205: 0
B206: 110 | C206: 0
B207: 111 | C207: 0
B208: 112 | C208: 0
B209: 113 | C209: 0
B210: 114 | C210: 0
B211: 115 | C211: 0
B212: 116 | C212: 0
B213: 117 | C213: 0
B214: 118 | C214: 0
B215: 119 | C215: 0
B216: 120 | C216: 0

Sheet PR SELECCION (hidden)
C1: volver | G1: BBVA Finanzia
C3: SIMULADOR PRESTAMO SELECCIÓN
C5: Principal
C7: T.I.N. Anual | E7: Plazo Total
C9: Seguro (1)
C11: Com. Apert. | D11: 0.0275 | E11: Com. Estudio | F11: 0
C13: Importe Total Financiado | E13: =+IF(ISERROR(E41),"",E41) -> 0
C15: VR Intermedio | E15: Momento
B17: =+IF(F7="","",E44) ->  | C17: Cuotas Mensuales | E17: =IF(ISERROR(+E45),"",E45) -> 
B19: =+IF(F7="","",F7-B17) ->  | C19: =+C17 -> Cuotas Mensuales | E19: =+IF(ISERROR(E46),"",E46) -> 
C21: (1) En operaciones a partir de 72 meses el Seguro PPP es obligatorio.
G32: 1 | I32: 3 | J32: =INDEX(J33:J36,I32,1) -> 
G33: Financiadas | I33: PPP | J33: =INDEX(SEG!$A$3:$D$122,MATCH($F$7,SEG!$A$3:$A$122,1),2) -> 
G34: Al Contado | I34: Siniestro total | J34: =INDEX(SEG!$A$3:$D$122,MATCH($F$7,SEG!$A$3:$A$122,1),3) -> 
I35: PPP + ST | J35: =INDEX(SEG!$A$3:$D$122,MATCH($F$7,SEG!$A$3:$A$122,1),4) -> 
I36: Sin Seguros | J36: 0
D38: Principal | E38: =+D5 -> 0 | G38: 1 | H38: =INDEX(H40:H46,G38,1) -> 0
D39: Seguro | E39: =+IF(E38=0,"",J32*D5) ->  | G39: Momentos Inter. | H39: % Inter
D40: CAP | E40: =+IF(E38=0,"",IF(G32=1,(E38+E39)*(D11+F11),0)) -> 
D41: Financiado | E41: =+ROUND(SUM(E38:E40),2) -> 0 | G41: 12 | H41: 0.6
D42: Plazo | E42: =+IF(F7="","",F7) ->  | G42: 24 | H42: 0.55
D43: vr Intermedio | E43: =+D15 -> 0 | G43: 36 | H43: 0.5
D44: Plazo Interm | E44: =INDEX(G40:G46,G38,1) -> 0 | G44: 48 | H44: 0.45
D45: Cuotas Inic | E45: =PMT(D7/12,E44,-E41,E43,0) ->  | G45: 60 | H45: 0.4
D46: Cuotas Post | E46: =PMT(D7/12,B19,-D15,0,0) ->  | G46: 72 | H46: 0.35

Sheet CUOTAS IRREGULARES
A1: 1 | B1: volver
G3: Consumer Finance
B5: SIMULADOR CUOTAS IRREGULARES v9
B7: Principal
B9: T.I.N. Anual (1) | E9: Plazo
B11: Seguro (2) | E11: =IF(AND(F9<I27,OR(I31=6,I31=7)),"¡¡¡Seguro tipo Y no contratable por plazo, Cambie de producto!!!","") -> 
B13: Com. Apert. | D13: Com. Estudio
B15: Importe Total Financiado | D15: =+IF(ISERROR(D88),"",D88) -> 
B17: Nº de Cuotas Irregulares (3) | E17: Importe Cuotas Iniciales (3)
B19: Cuotas Iniciales Mínimas | D19: =+IF(ISERROR(ROUND(IF(D15="","",(D15*C9/12)+E19),0)),"",ROUND(IF(D15="","",(D15*C9/12)+E19),0)) ->  | E19: =IF(C9="","",(PPMT(C9/12,1,F9,-D15,0))*25%) -> 
B21: =+IF(F9="","Cuotas de la 1 a la X","Cuotas de las 1 a la "&D90) -> Cuotas de la 1 a la X | D21: =+G17 -> 0 | E21: =+IF(G17<D19,"La Cuota no cubre el mínimo exigido, revisela","") -> 
B23: =+IF(D17="","Cuotas de la X a la Y","Cuotas de la "&D90+1&" a la "&D89) -> Cuotas de la X a la Y | D23: =+E93 -> 
C24: TAE | D24: =+C96 -> 
B26: (1) Condiciones financieras de la Tarifa correspondiente al Colaborador
B27: (2) En operaciones a partir de 84 meses el Seguro PPP es recomendado.
B28: (3) Sujeto a autorización previa por parte de la Entidad a través de Campañas.
H30: 18
H31: PPP
H32: Siniestro Total
H33: PLATINO: PPP+Sustitc. + R. Carnet
H34: DORADO:Sustitc.+ R.Carnet
H35: PPP+ST
H36: PPP+ST+Y
H37: TITANIO: PPP+ Y
H38: Desempleo (T/X)
H39: Desempleo+ST
H40: Desempleo+ST+Y
H41: Desempleo+Y
H42: Vehic Sustituc+ST
H43: Sin Seguros
H44: Vehic Sustituc (Y)
H45: Retirada Carnet
H46: EG VO
H47: JADE VO (PPP+ EG VO)
H48: Desempleo + EG VO
H49: PPP-SENIOR (M)
H73: 1 | I73: =IF(OR(H73=4,H73=5,H73=8,H73=9,H73=10,H73=11),H73,0) -> 0 | J73: =+IF(AND((H73=2),(D55>84)),"xx","") -> 
J74: =+IF(AND((H73=3),(D55>84)),"xx","") -> 
F75: 1 | H75: PPP | I75: =INDEX(SEG!$A$3:$E$122,MATCH($F$9,SEG!$A$3:$A$122,1),2) ->  | K75: =+I75*$D$84 -> 
F76: Financiadas | H76: Siniestro Total | I76: =INDEX(SEG!$A$3:$E$122,MATCH($F$9,SEG!$A$3:$A$122,1),3) ->  | K76: =+I76*$D$84 -> 
F77: Al Contado | H77: PLATINO: PPP+Sustitc. + R. Carnet | I77: =+I75+I88+I89 ->  | K77: =+I77*$D$84 -> 
H78: DORADO: Sustitc. + R.C. | I78: =+I88+I89 -> 0 | K78: =+I78*$D$84 -> 0
F79: Imprte Seguro | G79: =INDEX(SEG!A3:C122,MATCH(F9,SEG!A3:A122,1),3) ->  | H79: PPP+Siniestro Total | I79: =+I75+I76 ->  | K79: =+K75+K76 -> 
H80: PPP+ST+Y | K80: =+K79+K88 -> 
B81: Min CAP | C81: 150 | H81: TITANIO: PPP+Y | K81: =+K75+K88 -> 
B82: Min CEST | C82: 30.05 | H82: Desempleo | I82: =INDEX(SEG!$A$3:$E$122,MATCH($F$9,SEG!$A$3:$A$122,1),5) ->  | K82: =+D84*I82 -> 
H83: Desemp+ST | I83: =+I82+I76 ->  | K83: =+K76+K82 -> 
C84: Principal | D84: =+C7 -> 0 | H84: Desempleo+ST+Y | K84: =+K83+K88 -> 
C85: Seguro | D85: =(INDEX(K75:K93,H30,1)) ->  | H85: Desempleo+Y | K85: =+K82+K88 -> 
B86: =+IF(D84="",0,IF(F75=1,(D84+D85)*(C13),0)) ->  | C86: CAP | D86: =+IF(((D84+D85)*C13)<$C$81,$C$81,(D84+D85)*C13) ->  | H86: Vehic Sust+ST | K86: =+K88+K76 -> 
B87: =+IF(D84="",0,IF(F75=1,(D84+D85)*(E13),0)) ->  | C87: CEST | D87: =+IF(E13=0,0,IF(((D85+D86)*$E$13)<$C$82,$C$82,(D85+D86)*$E$13)) -> 0 | H87: Sin Seguros | I87: 0 | K87: 0
C88: Financiado | D88: =+IF(F75=1,SUM(D84:D87),SUM(D84:D85)) ->  | H88: Vehic Sustituc (Y) | I88: =IF(F9>23,INDEX(SEG!$A$3:$I$122,MATCH($F$9,SEG!$A$3:$A$122,1),6),0) -> 0 | K88: =+I88*$D$84 -> 0
C89: Plazo | D89: =+IF(F9="","",F9) ->  | H89: Retirada Carnet | I89: =IF(F9>23,INDEX(SEG!$A$3:$G$122,MATCH($F$9,SEG!$A$3:$A$122,1),7),0) -> 0 | K89: =+I89*$D$84 -> 0
C90: Nº Cuotas Irreg. | D90: =+IF(D17="","",D17) ->  | H90: EG VO | I90: =INDEX(SEG!$A$3:$J$122,MATCH($F$9,SEG!$A$3:$A$122,1),8) ->  | K90: =+I90 -> 
C91: Resto de Cuotas | D91: =+IF((D89-D90)="","",D89-D90) ->  | H91: JADE VO (PPP+ EG VO) | I91: =I75 ->  | K91: =(+I91*$D$84)+K90 -> 
C92: =+"RV "&D90 -> RV | D92: =FV($C$9/12,D90,G17,-D15,0) ->  | H92: Desempleo + EG VO | I92: =I82 ->  | K92: =(+I92*$D$84)+K90 -> 
C93: Importe Resto Cuotas | E93: =IF(D17="","",PMT(C9/12,D91,-D92,0,0)) ->  | H93: PPP-SENIOR (M) | I93: =INDEX(SEG!$A$3:$J$122,MATCH($F$9,SEG!$A$3:$A$122,1),10) ->  | K93: =+I93*$D$84 -> 
B96: TAE | C96: =+IF(ISERROR(((1+(C97/12))^12)-1),"",((1+(C97/12))^12)-1) -> 
B97: TIR | C97: =+IRR(C98:C210,0.0025)*12 -> 
B98: 0 | C98: =+IF(F75=1,-D88,-D88+D86+D87) -> 
B99: 1 | C99: =+IF(B99<($D$90+1),$D$21,IF(B99<($D$89+1),$E$93,0)) -> 
B100: 2
B101: 3
B102: 4
B103: 5
B104: 6
B105: 7
B106: 8
B107: 9
B108: 10
B109: 11
B110: 12
B111: 13
B112: 14
B113: 15
B114: 16
B115: 17
B116: 18
B117: 19
B118: 20
B119: 21
B120: 22
B121: 23
B122: 24
B123: 25
B124: 26
B125: 27
B126: 28
B127: 29
B128: 30
B129: 31
B130: 32
B131: 33 | C131: =+IF(B131<($D$90+1),$D$21,IF(B131<($D$89+1),$E$93,0)) -> 
B132: 34
B133: 35
B134: 36
B135: 37
B136: 38
B137: 39
B138: 40
B139: 41
B140: 42
B141: 43
B142: 44
B143: 45
B144: 46
B145: 47
B146: 48
B147: 49
B148: 50
B149: 51
B150: 52
B151: 53
B152: 54
B153: 55
B154: 56
B155: 57
B156: 58
B157: 59
B158: 60
B159: 61
B160: 62
B161: 63
B162: 64
B163: 65 | C163: =+IF(B163<($D$90+1),$D$21,IF(B163<($D$89+1),$E$93,0)) -> 
B164: 66
B165: 67
B166: 68
B167: 69
B168: 70
B169: 71
B170: 72
B171: 73
B172: 74
B173: 75
B174: 76
B175: 77
B176: 78
B177: 79
B178: 80
B179: 81
B180: 82
B181: 83
B182: 84
B183: 85
B184: 86
B185: 87
B186: 88
B187: 89
B188: 90
B189: 91
B190: 92
B191: 93
B192: 94
B193: 95
B194: 96
B195: 97 | C195: =+IF(B195<($D$90+1),$D$21,IF(B195<($D$89+1),$E$93,0)) -> 
B196: 98
B197: 99
B198: 100
B199: 101
B200: 102
B201: 103
B202: 104
B203: 105
B204: 106
B205: 107
B206: 108
B207: 109
B208: 110
B209: 111
B210: 112
B211: 113
B212: 114
B213: 115
B214: 116
B215: 117
B216: 118
B217: 119
B218: 120

Sheet CARENCIAS
B1: volver
G3: Consumer Finance
B5: SIMULADOR CUOTAS CON CARENCIAS v9
B7: Principal
B9: T.I.N. Anual (1) | E9: Plazo (2)
B11: Seguros (4) | D11: =IF(AND(F9<E27,OR(I31=6,I31=7)),"¡¡¡Seguro tipo Y no contratable por plazo, Cambie de producto!!!","") -> 
B13: Com. Apert. | D13: Com. Estudio
B15: Importe Total Financiado | D15: =+IF(ISERROR(D89),"",D89) -> 
B17: Nº de Cuotas en Carencia (3)
B19: =+IF(F9="","Cuotas de la 1 a la X","Cuotas de las 1 a la "&D91) -> Cuotas de la 1 a la X | D19: 0
B21: =+IF(D17="","",IF(F9="","Cuotas de la X a la Y","Cuotas de la "&D91+1&" a la "&D90)) ->  | D21: =+E94 -> 
C22: TAE | D22: =+C100 -> 
B24: (1) Condiciones financieras de la Tarifa correspondiente al Colaborador
B25: (2) Plazo total de la operación, incluída la carencia
B26: (3) Sujeto a autorización previa por parte de la Entidad.
B27: (4) Plazo minimo del seguro tipo "Y" (meses)
H31: 1 | I31: =IF(OR(H31=6,H31=7),H31,0) -> 0
H33: PPP
H34: Siniestro Total
H35: PLATINO:PPP+Sust.+R.C.
H36: DORADO: Sustit.+ R.C
H37: PPP+ Siniestro Total
H38: PPP+ Siniestro Total+Y
H39: Desempleo
H40: Desempleo+ ST
H41: Desempleo+ ST+ Y
H42: Desempleo+ Y
H43: Vehic. Sustic.+ ST
H44: Sin Seguros
H45: Vehic. Sustituc.(Y)
H46: Retirada Carnet
H47: EG VO(7)
H48: PPP+RET.CARNET
H49: DESEMPLEO + RET.CARNET
H50: PPP-SENIOR (M)
H51: PPP-EXTENSIÓN DE GARANTÍA
F75: 2 | I75: =INDEX(I76:I94,H31,1) -> 
F76: Financiadas | H76: PPP | I76: =INDEX(SEG!$A$3:$J$122,MATCH($F$9,SEG!$A$3:$A$122,1),2) ->  | J76: =+$D$85*I76 -> 
F77: Al Contado | H77: Siniestro Total | I77: =INDEX(SEG!$A$3:$J$122,MATCH($F$9,SEG!$A$3:$A$122,1),3) ->  | J77: =+$D$85*I77 -> 
H78: PLATINO:PPP+Sust.+R.C. | I78: =+I76+I88+I89 ->  | J78: =+$D$85*I78 -> 
H79: DORADO: Sustit.+ R.C | I79: =+I88+I89 ->  | J79: =+$D$85*I79 -> 
H80: PPP+ Siniestro Total | I80: =+I76+I77 ->  | J80: =+J76+J77 -> 
H81: PPP+ Siniestro Total+Y | I81: =+I77+I76+I88 ->  | J81: =+J88+J77+J76 -> 
B82: Min CAP | C82: 150 | H82: Desempleo | I82: =INDEX(SEG!$A$3:$J$122,MATCH($F$9,SEG!$A$3:$A$122,1),5) ->  | J82: =+$D$85*I82 -> 
B83: Min CEST | C83: 30.05 | H83: Desempleo+ ST | I83: =I82+I77 ->  | J83: =+$D$85*I83 -> 
H84: Desempleo+ ST+ Y | I84: =I82+I77+I88 ->  | J84: =+$D$85*I84 -> 
C85: Principal | D85: =+C7 -> 0 | H85: Desempleo+ Y | I85: =I82+I88 ->  | J85: =+I85*D85 -> 
C86: Seguro | D86: =ROUND((INDEX(J76:J95,H31,1)),2) ->  | H86: Vehic. Sustic.+ ST | I86: =+I88+I77 ->  | J86: =+I86*D85 -> 
B87: =+ROUND(IF(D85=0,0,IF($F$75=1,(D85+D86)*(C13),0)),2) -> 0 | C87: CAP | D87: =+ROUND(IF((SUM(D85:D86)*$C$13)<$C$82,$C$82,(SUM(D85:D86)*$C$13)),2) ->  | H87: Sin Seguros | I87: 0 | J87: =+I87 -> 0
B88: =+IF(D85=0,0,IF($F$75=1,(D85+D86)*(E13),0)) -> 0 | C88: CEST | D88: =+IF(E13=0,0,(IF((SUM(D85:D86)*$E$13)<$C$83,$C$83,(SUM(D85:D86)*$E$13)))) -> 0 | H88: Vehic. Sustituc.(Y) | I88: =INDEX(SEG!$A$3:$J$122,MATCH($F$9,SEG!$A$3:$A$122,1),6) ->  | J88: =+I88*D85 -> 
C89: Financiado | D89: =+ROUND(IF(F75=1,SUM(D85:D88),SUM(D85:D86)),2) ->  | H89: Retirada Carnet | I89: =INDEX(SEG!$A$3:$J$122,MATCH($F$9,SEG!$A$3:$A$122,1),7) ->  | J89: =+I89*D85 -> 
C90: Plazo | D90: =+IF(F9="","",F9) ->  | H90: EG VO | I90: =INDEX(SEG!$A$3:$J$122,MATCH($F$9,SEG!$A$3:$A$122,1),8) ->  | J90: =+I90 -> 
C91: Nº Cuotas Irreg. | D91: =+IF(D17="","",D17) ->  | H91: PPP+RET.CARNET | I91: =I76+I89 ->  | J91: =+I91*D85 -> 
C92: Resto de Cuotas | D92: =+IF(D17="","",IF((D90-D91)="","",D90-D91)) ->  | H92: DESEMPLEO + RET.CARNET | I92: =I82+I89 ->  | J92: =+I92*D85 -> 
C93: =+"RV "&D91 -> RV | D93: =ROUND(FV($C$9/12,D91,0,-D15,0),2) ->  | H93: PPP-SENIOR (M) | I93: =INDEX(SEG!$A$3:$J$122,MATCH($F$9,SEG!$A$3:$A$122,1),10) ->  | J93: =+$D$85*I93 -> 
C94: Importe Resto Cuotas | E94: =ROUND(IF(D17="","",PMT(C9/12,D92,-D93,0,0)),4) ->  | H94: PPP-EXTENSIÓN DE GARANTÍA | I94: =+I76 ->  | J94: =J76+J90 -> 
B100: TAE | C100: =+IF(ISERROR(((1+(C101/12))^12)-1),"",((1+(C101/12))^12)-1) -> 
B101: TIR | C101: =+IRR(C102:C222,0.0025)*12 -> 
B102: 0 | C102: =+IF(F75=1,-D89,-D89+D87+D88) -> 
B103: 1 | C103: =+IF(B103<($D$91+1),0,IF(B103<($D$90+1),$E$94,0)) -> 
B104: 2 | C104: =+IF(B104<($D$91+1),0,IF(B104<($D$90+1),$E$94,0)) -> 
B105: 3
B106: 4
B107: 5
B108: 6
B109: 7
B110: 8
B111: 9
B112: 10
B113: 11
B114: 12
B115: 13
B116: 14
B117: 15
B118: 16
B119: 17
B120: 18
B121: 19
B122: 20
B123: 21
B124: 22
B125: 23
B126: 24
B127: 25
B128: 26
B129: 27
B130: 28
B131: 29
B132: 30
B133: 31
B134: 32
B135: 33
B136: 34
B137: 35
B138: 36
B139: 37
B140: 38
B141: 39
B142: 40
B143: 41
B144: 42
B145: 43
B146: 44
B147: 45
B148: 46
B149: 47
B150: 48
B151: 49
B152: 50
B153: 51
B154: 52
B155: 53
B156: 54
B157: 55
B158: 56
B159: 57
B160: 58
B161: 59
B162: 60
B163: 61
B164: 62
B165: 63
B166: 64
B167: 65
B168: 66 | C168: =+IF(B168<($D$91+1),0,IF(B168<($D$90+1),$E$94,0)) -> 
B169: 67
B170: 68
B171: 69
B172: 70
B173: 71
B174: 72
B175: 73
B176: 74
B177: 75
B178: 76
B179: 77
B180: 78
B181: 79
B182: 80
B183: 81
B184: 82
B185: 83
B186: 84
B187: 85
B188: 86
B189: 87
B190: 88
B191: 89
B192: 90
B193: 91
B194: 92
B195: 93
B196: 94
B197: 95
B198: 96
B199: 97
B200: 98
B201: 99
B202: 100
B203: 101
B204: 102
B205: 103
B206: 104
B207: 105
B208: 106
B209: 107
B210: 108
B211: 109
B212: 110
B213: 111
B214: 112
B215: 113
B216: 114
B217: 115
B218: 116
B219: 117
B220: 118
B221: 119
B222: 120

Sheet LEASING
B1: volver
F3: SIMULADOR OPERACIONES DE LEASING
B5: Imp. Financiado
B7: T.I.N. Anual (1) | D7: Plazo
B9: Com. Apert. | D9: Com. Estudio
B11: Importe de las Cuotas | D11: =+D36 -> 
B13: Valor Residual igual a UNA Cuota
B15: (1) Condiciones financieras de la Tarifa correspondiente al Colaborador
F25: 1 | H25: 1
F26: Financiada | H26: Sí
F27: Al Contado | H27: No
F29: Imprte Seguro | G29: =+IF(D31<18030.36,442.12,IF(D31<30050.61,912.91,1800.99)) -> 442.12
C31: Principal | D31: =+C5 -> 0
C32: Seguro | D32: =+IF(D31=0,"",IF(H25=1,G29,0)) -> 
C33: CAP | D33: =+IF(D31=0,"",IF(F25=1,(D31+D32)*C9,0)) -> 
C34: Financiado | D34: =+ROUND(SUM(D31:D33),2) -> 0
C35: Plazo | D35: =+IF(E7="","",E7) -> 
C36: Cuotas | D36: =+IF(C5="","",PMT($C$7/12,E7+1,-C5,0,1)) -> 

Sheet DOBLE TIPO 12.0
E1: Volver
D4: Simulador de Cuotas
D5: DOBLE TIPO 12.0
D7: Importe Solicitado
D9: Plazo Total de la Operación | F9: meses
D11: TIN del Período 1 | E11: 0 | F11: Duración Período 1 | H11: 12
D13: TIN del Período 2 | F13: Duración Período 2 | H13: =+IF(F48="","",F48-H11) -> 48
D15: Seguro (2)
D17: Com. Apert. | E17: 0.0395
D19: Importe Total Financiado | F19: =+IF(ISERROR(F44),"",F44) -> 150
D21: =+IF(H11="","","Cuotas de las 1 a la "&H11) -> Cuotas de las 1 a la 12 | E21: =IF(E7="","",PMT(E11/12,F48,-F19,0,0)) -> 
D23: =+IF(H11="","","Cuotas de la "&H11+1&" a la "&F48) -> Cuotas de la 13 a la 60 | E23: =IF(ISERROR(PMT(F47/12,H13,-F46,0,0)),"",PMT(F47/12,H13,-F46,0,0)) -> 
D24: TAE | E24: =+E50 -> 
D26: Válido para VN y VSN.
H35: 1 | J35: 1 | L35: =INDEX(L36:L74,J35,1) -> 0
E36: Min CAP | F36: 150 | H36: Financiadas | J36: PPP | K36: =INDEX(SEG!$A$3:$J$122,$F$48,2) -> 0.0531974 | L36: =+K36*$E$7 -> 0
H37: Al Contado | J37: Siniestro Total | K37: =INDEX(SEG!$A$3:$J$122,$F$48,3) -> 0.053407 | L37: 0
J38: PLATINO: PPP+Sustic.+R.Carnet | K38: =+K36+K49+K48 -> 0.0893424 | L38: 0
H39: Imprte Seguro | J39: DORADO:Sustic.+R.C. | K39: =+K49+K48 -> 0.036145 | L39: 0
C40: 1 | J40: PPP+ST | K40: =+K36+K37 -> 0.1066044 | L40: 0
C41: 60 | E41: Principal | F41: =+E7 -> 0 | J41: PPP+ST+Y | K41: =+K36+K37+K48 -> 0.1254444 | L41: 0
C42: 72 | E42: Seguro | F42: =+IF(F41=0,"",L35) ->  | J42: TITANIO: PPP+Y | K42: =K36+K48 -> 0.0720374 | L42: =+L48+L36 -> 0
C43: 84 | E43: CAP | F43: =+IF((SUM(F41:F42)*$E$17)<$F$36,$F$36,(SUM(F41:F42)*$E$17)) -> 150 | J43: Desempleo (t/x) | K43: =INDEX(SEG!$A$3:$J$122,$F$48,5) -> 0.08879108 | L43: =+K43*$E$7 -> 0
C44: 96 | E44: Financiado | F44: =+IF(H35=1,SUM(F41:F43),SUM(F41:F42)) -> 150 | J44: Desempleo+ ST | K44: =K43+K37 -> 0.14219808 | L44: =+L43+L37 -> 0
C45: 108 | E45: Plazo | F45: =+IF(H13="","",H13) -> 48 | J45: Desempleo+ ST+Y | K45: =K43+K37+K48 -> 0.16103808 | L45: =+K45*$E$7 -> 0
C46: 120 | E46: VR | F46: =FV(E11/12,H11,E21,-F44,0) ->  | J46: Desempleo+Y | K46: =K43+K48 -> 0.10763108 | L46: =+L43+L48 -> 0
E47: tin plazo 2 | F47: =+$E$13 -> 0 | J47: Vehic. Sustic. + ST | K47: =K48+K37 -> 0.072247 | L47: =+L48+L37 -> 0
E48: Plazo Total | F48: =+INDEX(C41:C46,C40,1) -> 60 | J48: Vehic. Sustic. (Y) | K48: =INDEX(SEG!$A$3:$J$122,$F$48,6) -> 0.01884 | L48: =+K48*$E$7 -> 0
J49: Retirada Carnet | K49: =INDEX(SEG!$A$3:$J$122,$F$48,7) -> 0.017305 | L49: =+K49*$E$7 -> 0
D50: TAE | E50: =+IF(ISERROR(((1+(E51/12))^12)-1),"",((1+(E51/12))^12)-1) ->  | J50: EG VO | K50: =INDEX(SEG!$A$3:$J$122,$F$48,8) -> 257.51 | L50: =+K50 -> 257.51
D51: TIR | E51: =+IRR(E52:E172,0.0025)*12 ->  | J51: JADE VO (PPP+ EG VO) | K51: =K36 -> 0.0531974 | L51: =(+K51*$E$7)+L50 -> 257.51
D52: 0 | E52: =+IF(H35=1,-F44,-F44+F43) -> -150 | J52: Desempleo + EG V0 | K52: =K43 -> 0.08879108 | L52: =(+K52*$E$7)+L50 -> 257.51
D53: 1 | E53: =+IF(D53<=($F$48-$F$45),$E$21,IF(D53<=($F$48+1),$E$23,0)) ->  | J53: PPP-Senior( M) | K53: =INDEX(SEG!$A$3:$J$122,$F$48,10) -> 0.1249397 | L53: =+K53*$E$7 -> 0
D54: 2
D55: 3
D56: 4
D57: 5
D58: 6
D59: 7
D60: 8
D61: 9
D62: 10
D63: 11
D64: 12
D65: 13 | E65: =+IF(D65<($F$48-$F$45),$E$21,IF(D65<($F$48+1),$E$23,0)) -> 
D66: 14 | E66: =+IF(D66<($F$48-$F$45),$E$21,IF(D66<($F$48+1),$E$23,0)) -> 
D67: 15
D68: 16
D69: 17
D70: 18
D71: 19
D72: 20
D73: 21
D74: 22
D75: 23
D76: 24
D77: 25
D78: 26
D79: 27
D80: 28
D81: 29
D82: 30
D83: 31
D84: 32
D85: 33
D86: 34
D87: 35
D88: 36
D89: 37
D90: 38
D91: 39
D92: 40
D93: 41
D94: 42
D95: 43
D96: 44
D97: 45
D98: 46
D99: 47
D100: 48
D101: 49
D102: 50
D103: 51
D104: 52
D105: 53
D106: 54
D107: 55
D108: 56
D109: 57
D110: 58
D111: 59
D112: 60
D113: 61 | E113: 0
D114: 62 | E114: 0
D115: 63 | E115: 0
D116: 64 | E116: 0
D117: 65 | E117: 0
D118: 66 | E118: 0
D119: 67 | E119: 0
D120: 68 | E120: 0
D121: 69 | E121: 0
D122: 70 | E122: 0
D123: 71 | E123: 0
D124: 72 | E124: 0
D125: 73 | E125: 0
D126: 74 | E126: 0
D127: 75 | E127: 0
D128: 76 | E128: 0
D129: 77 | E129: 0
D130: 78 | E130: =+IF(D130<($F$48-$F$45),$E$21,IF(D130<($F$48+1),$E$23,0)) -> 0
D131: 79 | E131: 0
D132: 80 | E132: 0
D133: 81 | E133: 0
D134: 82 | E134: 0
D135: 83 | E135: 0
D136: 84 | E136: 0
D137: 85 | E137: 0
D138: 86 | E138: 0
D139: 87 | E139: 0
D140: 88 | E140: 0
D141: 89 | E141: 0
D142: 90 | E142: 0
D143: 91 | E143: 0
D144: 92 | E144: 0
D145: 93 | E145: 0
D146: 94 | E146: 0
D147: 95 | E147: 0
D148: 96 | E148: 0
D149: 97 | E149: 0
D150: 98 | E150: 0
D151: 99 | E151: 0
D152: 100 | E152: 0
D153: 101 | E153: 0
D154: 102 | E154: 0
D155: 103 | E155: 0
D156: 104 | E156: 0
D157: 105 | E157: 0
D158: 106 | E158: 0
D159: 107 | E159: 0
D160: 108 | E160: 0
D161: 109 | E161: 0
D162: 110 | E162: 0
D163: 111 | E163: 0
D164: 112 | E164: 0
D165: 113 | E165: 0
D166: 114 | E166: 0
D167: 115 | E167: 0
D168: 116 | E168: 0
D169: 117 | E169: 0
D170: 118 | E170: 0
D171: 119 | E171: 0
D172: 120 | E172: 0

Sheet DOBLE TIPO 6.0 (hidden)
F1: Volver
D4: Simulador de Cuotas
D5: DOBLE TIPO 6.0
D7: Importe Solicitado
D9: Plazo Total de la Operación | F9: meses
D11: TIN del Período 1 | E11: 0 | F11: Duración 1er Período | H11: 6 | I11: meses
D13: TIN del Período 2 | F13: Duración 2o Período | H13: =+IF(F48="","",F48-H11) -> 66 | I13: meses
D15: Seguro (2)
D17: Com. Apert. | E17: 0.0395
D19: Importe Total Financiado | F19: =+IF(ISERROR(F44),"",F44) -> 0
D21: =+IF(H11="","","Cuotas de las 1 a la "&H11) -> Cuotas de las 1 a la 6 | E21: =IF(E7="","",PMT(E11/12,F48,-F19,0,0)) -> 
D23: =+IF(H11="","","Cuotas de la "&H11+1&" a la "&F48) -> Cuotas de la 7 a la 72 | E23: =IF(ISERROR(PMT(F47/12,H13,-F46,0,0)),"",PMT(F47/12,H13,-F46,0,0)) -> 
D26: Válido para VN y VSN.
N33: TIPO SEGURO
H35: 1 | K35: 1 | L35: =INDEX($M36:$M46,$K35,1) -> 0 | M35: =+INDEX($M$36:$M$76,K35,1) -> 0
H36: Financiadas | K36: PPP | L36: =INDEX(SEG!$A$3:$F$122,$F$48,2) -> 0.0571363 | M36: =+L36*$E$7 -> 0 | N36: Q
H37: Al Contado | K37: Siniestro Total | L37: =INDEX(SEG!$A$3:$F$122,$F$48,3) -> 0.0640883 | M37: =+L37*$E$7 -> 0 | N37: D
K38: PPP + ST | L38: =+L36+L37 -> 0.1212246 | M38: 0 | N38: Q+D
H39: Imprte Seguro | K39: Desemp./Incap. | L39: =INDEX(SEG!$A$3:$F$122,$F$48,4) -> 0.09269194 | M39: 0 | N39: T/X
C40: 1 | D40: 2 | K40: Des/Inc + ST | L40: =L37+L39 -> 0.15678024 | M40: 0 | N40: T/X + D
C41: 0.0399 | D41: 60 | E41: Principal | F41: =+E7 -> 0 | K41: Vehic.Sustit | L41: =INDEX(SEG!$A$3:$F$122,$F$48,6) -> 0.022608 | M41: 0 | N41: Y
C42: 0.0499 | D42: 72 | E42: Seguro | F42: =+IF(F41=0,"",M35) ->  | K42: TITANIO (PPP+Vehic.Sust) | L42: =L36+L41 -> 0.0797443 | M42: =+M41+M36 -> 0 | N42: Q+Y
C43: 0.0599 | D43: 84 | E43: CAP | F43: =+IF(F41=0,"",IF(H35=1,(F41+F42)*(E17+G17),0)) ->  | K43: PPP+D+Vehic sust | L43: =L36+L37+L41 -> 0.1438326 | M43: =+M36+M37+M41 -> 0 | N43: Q+D+Y
C44: 0.0699 | D44: 96 | E44: Financiado | F44: =+ROUND(SUM(F41:F43),2) -> 0 | K44: Desemp./Incap.+Vehic Sust | L44: =L39+L41 -> 0.11529994 | M44: =+M39+M41 -> 0 | N44: T/X+Y
C45: 0.0799 | D45: 108 | E45: Plazo | F45: =+IF(H13="","",H13) -> 66 | K45: Desempl/Incap+Vehic Sust+ST | L45: =L39+L41+L37 -> 0.17938824 | M45: =+M37+M39+M41 -> 0 | N45: T/X+D+Y
C46: 0.0899 | D46: 120 | E46: VR | F46: =FV(E11/12,H11,E21,-F44,0) ->  | K46: ST+Vehic Sust. | L46: =L37+L41 -> 0.0866963 | M46: =+M37+M41 -> 0 | N46: D+Y
E47: tin plazo 2 | F47: =INDEX(C41:C46,C40,1) -> 0.0399 | K47: Retirada de Canet | L47: =INDEX(SEG!$A$3:$G$122,$F$48,7) -> 0.020766 | M47: =+L47*$E$7 -> 0
E48: Plazo Total | F48: =+INDEX(D41:D46,D40,1) -> 72 | K48: DORADO (Sust + RC) | L48: =L41+L47 -> 0.043374 | M48: =+M47+M41 -> 0
K49: PLATINO (PPP+Sust+RC) | L49: =L36+L41+L47 -> 0.1005103 | M49: =+M36+M41+M47 -> 0
K50: EXTENSIÓN DE GARANTÍA VO (7) | L50: 252.75 | M50: =+L50 -> 252.75
K51: PPP-SENIOR (M) | L51: =INDEX(SEG!$A$3:$J$122,$F$48,10) -> 0.1639529 | M51: =L51*$E$7 -> 0
K52: PPP-EXTENSIÓN DE GARANTÍA | M52: =M36+M50 -> 252.75

Sheet DEMOS (hidden)
A1: volver
F3: Consumer Finance
B5: SIMULADOR OPERACIONES DEMO
B7: Principal | C7: 391142.43
B9: T.I.N. Anual (1) | C9: 0.019 | D9: Plazo | E9: 8
B11: Seguros (2) | E11: =IF(AND(E9<H26,OR(P33=4,P33=5,P33=8,P33=9,P33=10,P33=11)),"¡¡¡Seguro tipo Y no contratable por plazo, Cambie de producto!!!","") -> 
B13: Com. Apert. | C13: 0.0025 | D13: Com. Estudio
B15: % Amortización mensuales sobre el capital (3) | E15: 0.05
B17: Importe Total Financiado | D17: =+IF(ISERROR(N46),"",N46) -> 392120.2861
B19: Ultima Cuota | D19: =+($E$15*($E$9-1)) -> 0.35
B22: Importe de las Cuotas | D22: =+N48 -> 49364.91249
C23: TAE | D23: =+IF(ISERROR((((1+((IRR(E32:E153,0.0025)*12)/12))^12)-1)),"",(((1+((IRR(E32:E153,0.0025)*12)/12))^12)-1)) -> 0.02326063071
B25: (1) Condiciones financieras de la Tarifa correspondiente al Colaborador
B26: (2) En operaciones a partir de 84 meses el Seguro PPP es obligatorio. Plazo minimo segruo TIPO Y (meses)
B27: (3) El % de amortización mensual debe estar autorizado e indicado por el Dpto de Riesgos.
C29: =+SUM(C33:C39) -> 137242.1001
C30: =+C29+C40 -> 392120.2861
B31: Nº Cuota | C31: Amortización | D31: Intereses | E31: Cuotas | F31: Pendiente
A32: 0 | B32: =+IF(A32<($E$9+1),A32,"") -> 0 | E32: =IF(M33=2,-D17+($N$44+$N$45),-D17) -> -392120.2861 | F32: =+IF(B32<>"",D17,"") -> 392120.2861
A33: 1 | B33: =+IF(A33<($E$9+1),A33,"") -> 1 | C33: =+IF(B33="","",IF($E$9=B33,(1-(($E$9-1)*$E$15))*$D$17,$E$15*$D$17)) -> 19606.0143 | D33: =+IF(B33="","",$C$9/12*$D$17) -> 620.8571196 | E33: =+IF(B33="","",C33+D33) -> 20226.87142 | F33: =+IF(B33<>"",F32-C33,"") -> 372514.2718 | M33: 1 | O33: 13 | P33: =IF(OR(O33=4,O33=5,O33=8,O33=9,O33=10,O33=11),O33,0) -> 0 | Q33: =+IF(AND((O33=2),(E9>84)),"xx","") -> 
A34: 2 | B34: 2 | C34: 19606.0143 | D34: =+IF(B34="","",$C$9/12*$D$17) -> 620.8571196 | E34: 20226.87142 | F34: =+IF(B34<>"",F33-C34,"") -> 352908.2575 | M34: Financiadas | O34: PPP | Q34: =+IF(AND((O33=3),(E9>84)),"xx","") -> 
A35: 3 | B35: 3 | C35: 19606.0143 | D35: 620.8571196 | E35: 20226.87142 | F35: 333302.2432 | M35: Al Contado | O35: Siniestro Total | Q35: =+IF(OR((Q33="xx"),(Q34="xx")),"X","") -> 
A36: 4 | B36: 4 | C36: 19606.0143 | D36: 620.8571196 | E36: 20226.87142 | F36: 313696.2289 | O36: PLATINO: PPP+Sustitc. + R. Carnet
A37: 5 | B37: 5 | C37: 19606.0143 | D37: 620.8571196 | E37: 20226.87142 | F37: 294090.2146 | L37: Min CAP | M37: =IF(C13<>0,150,0) -> 150 | O37: DORADO:Sustitc.+ R.Carnet
A38: 6 | B38: 6 | C38: 19606.0143 | D38: 620.8571196 | E38: 20226.87142 | F38: 274484.2003 | L38: Min CEST | M38: =+IF($E$13=0,0,30.05) -> 0 | O38: PPP+ST
A39: 7 | B39: 7 | C39: 19606.0143 | D39: 620.8571196 | E39: 20226.87142 | F39: 254878.1859 | O39: PPP+ST+Y
A40: 8 | B40: 8 | C40: 254878.1859 | D40: 620.8571196 | E40: 255499.0431 | F40: -2.910383046e-11 | O40: TITANIO: PPP+ Y
A41: 9 | O41: Desempleo
A42: 10 | M42: Principal | N42: =+C7 -> 391142.43 | O42: Desempleo+ST
A43: 11 | M43: Seguros | N43: =(INDEX(M77:M97,O33,1)) -> 0 | O43: Desempleo+ST+Y
A44: 12 | L44: =+IF($N$42=0,"",IF(M$33=1,($N$42+$N$43)*$C$13,0)) -> 977.856075 | M44: CAP | N44: =+IF((C13*($N$42+$N$43))<M37,M37,C13*($N$42+$N$43)) -> 977.856075 | O44: Desempleo+Y
A45: 13 | L45: =+IF($N$42=0,"",IF(M$33=1,($N$42+$N$43)*$E$13,0)) -> 0 | M45: CEST | N45: =+IF((C14*($N$42+$N$43))<M38,M38,C14*($N$42+$N$43)) -> 0 | O45: Vehic Sustituc+ST
A46: 14 | L46: =IF(E13>0,L45,"") ->  | M46: Financiado | N46: =+IF(M33=1,N42+N43+N44+N45,N42+N43) -> 392120.2861 | O46: Sin Seguros
A47: 15 | C47: =+IF(B47="","",IF($E$9=B47,(1-(($E$9-1)*$E$15))*$D$17,$E$15*$D$17)) ->  | M47: Plazo | N47: =+IF(E9="","",E9) -> 8 | O47: Vehic Sustituc (Y)
A48: 16 | C48: =+IF(B48="","",IF($E$9=B48,(1-(($E$9-1)*$E$15))*$D$17,$E$15*$D$17)) ->  | M48: Cuotas | N48: =IF(ISERROR(PMT($C$9/12,N47,-N46,0,0)),"",PMT($C$9/12,N47,-N46,0,0)) -> 49364.91249 | O48: Retirada Carnet
A49: 17 | O49: EG VN
A50: 18 | O50: EG VO
A51: 19 | O51: JADE VN (PPP+ EG VN)
A52: 20 | O52: JADE VO (PPP+EG VO)
A53: 21 | O53: Desempleo + PPP + EG VN
A54: 22 | O54: Desempleo + PPP + EG VO
A55: 23
A56: 24
A57: 25
A58: 26
A59: 27
A60: 28
A61: 29
A62: 30
A63: 31
A64: 32
A65: 33
A66: 34
A67: 35
A68: 36
A69: 37
A70: 38
A71: 39
A72: 40
A73: 41
A74: 42
A75: 43
A76: 44
A77: 45 | I77: PPP | J77: =INDEX(SEG!$A$3:$I$122,MATCH($E$9,SEG!$A$3:$A$122,1),2) -> 0.0092465 | M77: =+J77*$N$42 -> 3616.698479
A78: 46 | I78: Siniestro Total | J78: =INDEX(SEG!$A$3:$I$122,MATCH($E$9,SEG!$A$3:$A$122,1),3) -> 0.0072725 | M78: 2844.583322
A79: 47 | I79: PLATINO: PPP+Sustitc. + R. Carnet | J79: =+J77+J90+J91 -> 0.0092465 | M79: 3616.698479
A80: 48 | I80: DORADO: Sustitc. + R.C. | J80: =+J90+J91 -> 0 | M80: 0
A81: 49 | I81: PPP+Siniestro Total | J81: =+J77+J78 -> 0.016519 | M81: 6461.281801
A82: 50 | I82: PPP+ST+Y | J82: =+J77+J78+J90 -> 0.016519 | M82: 6461.281801
A83: 51 | I83: TITANIO: PPP+Y | J83: =+J77+J90 -> 0.0092465 | M83: 3616.698479
A84: 52 | I84: Desempleo | J84: =INDEX(SEG!$A$3:$I$122,MATCH($E$9,SEG!$A$3:$A$122,1),5) -> 0.0461114 | M84: 18036.12505
A85: 53 | I85: Desemp+ST | J85: =+J84+J78 -> 0.0533839 | M85: 20880.70837
A86: 54 | I86: Desempleo+ST+Y | J86: =J84+J78+J90 -> 0.0533839 | M86: 20880.70837
A87: 55 | I87: Desempleo+Y | J87: =J84+J90 -> 0.0461114 | M87: 18036.12505
A88: 56 | I88: Vehic Sust+ST | J88: =+J90+J78 -> 0.0072725 | M88: 2844.583322
A89: 57 | I89: Sin Seguros | J89: 0 | M89: 0
A90: 58 | I90: Vehic Sustituc (Y) | J90: =IF(E9>23,INDEX(SEG!$A$3:$I$122,MATCH($E$9,SEG!$A$3:$A$122,1),6),0) -> 0 | M90: =+J90*N42 -> 0
A91: 59 | I91: Retirada Carnet | J91: =IF(E9>23,INDEX(SEG!$A$3:$I$122,MATCH($E$9,SEG!$A$3:$A$122,1),7),0) -> 0 | M91: =+J91*N42 -> 0
A92: 60 | I92: EG VN | J92: =IF($E$9>23,INDEX(SEG!$A$3:$I$122,MATCH($E$9,SEG!$A$3:$A$122,1),8),0) -> 0 | M92: =+J92*$N$42 -> 0
A93: 61 | I93: EG VO | J93: =IF($E$9>23,INDEX(SEG!$A$3:$I$122,MATCH($E$9,SEG!$A$3:$A$122,1),9),0) -> 0 | M93: 0
A94: 62 | I94: JADE VN (PPP+ EG VN) | J94: =J77+J92 -> 0.0092465 | M94: 3616.698479
A95: 63 | I95: JADE VO (PPP+EG VO) | J95: =J77+J93 -> 0.0092465 | M95: 3616.698479
A96: 64 | I96: Desempleo + PPP + EG VN | J96: =+J84+J92 -> 0.0461114 | M96: 18036.12505
A97: 65 | B97: =+IF(A97<($E$9+1),A97,"") ->  | E97: =+IF(B97="","",C97+D97) ->  | I97: Desempleo + PPP + EG VO | J97: =J84+J93 -> 0.0461114 | M97: 18036.12505
A98: 66 | D98: =+IF(B98="","",$C$9/12*$D$17) ->  | F98: =+IF(B98<>"",F97-C98,"") -> 
A99: 67
A100: 68
A101: 69
A102: 70
A103: 71
A104: 72
A105: 73
A106: 74
A107: 75
A108: 76
A109: 77
A110: 78
A111: 79
A112: 80 | C112: =+IF(B112="","",IF($E$9=B112,(1-(($E$9-1)*$E$15))*$D$17,$E$15*$D$17)) -> 
A113: 81
A114: 82
A115: 83
A116: 84
A117: 85
A118: 86
A119: 87
A120: 88
A121: 89
A122: 90
A123: 91
A124: 92
A125: 93
A126: 94
A127: 95
A128: 96
A129: 97
A130: 98
A131: 99
A132: 100
A133: 101
A134: 102
A135: 103
A136: 104
A137: 105
A138: 106
A139: 107
A140: 108
A141: 109
A142: 110
A143: 111
A144: 112
A145: 113
A146: 114
A147: 115
A148: 116
A149: 117
A150: 118
A151: 119
A152: 120
C154: TAE | D154: =+IF(ISERROR((((1+((IRR($D$156:$D$276,0.0025)*12)/12))^12)-1)),"",(((1+((IRR($D$156:$D$276,0.0025)*12)/12))^12)-1)) -> 0.0191663347
C155: tir | D155: =+IRR($D$156:$D$276,0.0025)*12 -> 0.019
C156: 0 | D156: =IF(M33=2,-D17+($N$44+$N$45),-D17) -> -392120.2861
C157: 1 | D157: =+IF($E$9>(C157-1),$D$22,0) -> 49364.91249
C158: 2 | D158: 49364.91249
C159: 3 | D159: 49364.91249
C160: 4 | D160: 49364.91249
C161: 5 | D161: 49364.91249
C162: 6 | D162: 49364.91249
C163: 7 | D163: 49364.91249
C164: 8 | D164: 49364.91249
C165: 9 | D165: 0
C166: 10 | D166: 0
C167: 11 | D167: 0
C168: 12 | D168: 0
C169: 13 | D169: 0
C170: 14 | D170: 0
C171: 15 | D171: 0
C172: 16 | D172: 0
C173: 17 | D173: 0
C174: 18 | D174: 0
C175: 19 | D175: 0
C176: 20 | D176: 0
C177: 21 | D177: 0
C178: 22 | D178: 0
C179: 23 | D179: 0
C180: 24 | D180: 0
C181: 25 | D181: 0
C182: 26 | D182: 0
C183: 27 | D183: 0
C184: 28 | D184: 0
C185: 29 | D185: 0
C186: 30 | D186: 0
C187: 31 | D187: 0
C188: 32 | D188: 0
C189: 33 | D189: =+IF($E$9>(C189-1),$D$22,0) -> 0
C190: 34 | D190: 0
C191: 35 | D191: 0
C192: 36 | D192: 0
C193: 37 | D193: 0
C194: 38 | D194: 0
C195: 39 | D195: 0
C196: 40 | D196: 0
C197: 41 | D197: 0
C198: 42 | D198: 0
C199: 43 | D199: 0
C200: 44 | D200: 0
C201: 45 | D201: 0
C202: 46 | D202: 0
C203: 47 | D203: 0
C204: 48 | D204: 0
C205: 49 | D205: 0
C206: 50 | D206: 0
C207: 51 | D207: 0
C208: 52 | D208: 0
C209: 53 | D209: 0
C210: 54 | D210: 0
C211: 55 | D211: 0
C212: 56 | D212: 0
C213: 57 | D213: 0
C214: 58 | D214: 0
... 62 more rows

Sheet DOBLE TIPO 4.0 (hidden)
C1: Consumer Finance | F1: Volver
D4: Simulador de Cuotas Campaña 12.0
D5: OFERTA 12.0 2514 V.O.
D7: Importe Solicitado
D9: Plazo Total de la Operación | F9: meses
D11: TIN del Período 1 | E11: 0 | F11: Duración 1er Período | H11: 12 | I11: meses
D13: TIN del Período 2 | F13: Duración 2o Período | H13: =+IF(F48="","",F48-H11) -> 48 | I13: meses
D15: Seguro (2)
D17: Com. Apert. | E17: 0.03
D19: Importe Total Financiado | F19: =+IF(ISERROR(F44),"",F44) -> 150
D21: =+IF(H11="","","Cuotas de las 1 a la "&H11) -> Cuotas de las 1 a la 12 | E21: =IF(E7="","",PMT(E11/12,F48,-F19,0,0)) -> 
D23: =+IF(H11="","","Cuotas de la "&H11+1&" a la "&F48) -> Cuotas de la 13 a la 60 | E23: =IF(ISERROR(PMT(F47/12,H13,-F46,0,0)),"",PMT(F47/12,H13,-F46,0,0)) -> 
D24: TAE | E24: =+E50 -> 
D26: Válido para VO
N33: TIPO SEGURO
H35: 1 | K35: 1 | L35: =INDEX($M36:$M46,$K35,1) -> 0 | M35: =+INDEX($M$36:$M$76,$K$35,1) -> 0
E36: Min CAP | F36: 150 | H36: Financiadas | K36: PPP | L36: =INDEX(SEG!$A$3:$F$122,$F$48,2) -> 0.0531974 | M36: =+L36*$E$7 -> 0 | N36: Q
H37: Al Contado | K37: Siniestro Total | L37: =INDEX(SEG!$A$3:$F$122,$F$48,3) -> 0.053407 | M37: 0 | N37: D
K38: PPP + ST | L38: =+L36+L37 -> 0.1066044 | M38: 0 | N38: Q+D
C39: 1 | D39: 1 | H39: Imprte Seguro | K39: Desemp./Incap. | L39: =INDEX(SEG!$A$3:$F$122,$F$48,4) -> 0.08879108 | M39: 0 | N39: T/X
D40: 60 | K40: Des/Inc + ST | L40: =L37+L39 -> 0.14219808 | M40: 0 | N40: T/X + D
C41: 0.0999 | D41: 72 | E41: Principal | F41: =+E7 -> 0 | K41: Vehic.Sustit | L41: =INDEX(SEG!$A$3:$F$122,$F$48,6) -> 0.01884 | M41: 0 | N41: Y
D42: 84 | E42: Seguro | F42: =+IF(F41=0,"",M35) ->  | K42: TITANIO (PPP+Vehic.Sust) | L42: 0 | M42: =+M41+M36 -> 0 | N42: Q+Y
D43: 96 | E43: CAP | F43: =+IF((SUM(F41:F42)*$E$17)<$F$36,$F$36,SUM(F41:F42)*$E$17) -> 150 | K43: PPP+D+Vehic sust | L43: 0 | M43: =+M36+M37+M41 -> 0 | N43: Q+D+Y
D44: 108 | E44: Financiado | F44: =+IF(H35=1,SUM(F41:F43),SUM(F41:F42)) -> 150 | K44: Desemp./Incap.+Vehic Sust | L44: 0 | M44: =+M39+M41 -> 0 | N44: T/X+Y
E45: Plazo | F45: =+IF(H13="","",H13) -> 48 | K45: Desempl/Incap+Vehic Sust+ST | L45: 0 | M45: =+M37+M39+M41 -> 0 | N45: T/X+D+Y
E46: VR | F46: =FV(E11/12,H11,E21,-F44,0) ->  | K46: ST+Vehic Sust. | L46: 0 | M46: =+M37+M41 -> 0 | N46: D+Y
E47: tin plazo 2 | F47: =+E13 -> 0 | K47: Retirada de Carnét | L47: =INDEX(SEG!$A$3:$G$122,$F$48,7) -> 0.017305 | M47: =+L47*$E$7 -> 0
E48: Plazo Total | F48: =+INDEX(D40:D43,D39,1) -> 60 | K48: PLATINO (PPP+Sust+RC) | M48: =+M36+M41+M47 -> 0
H49: =+F44/D42 -> 1.785714286 | K49: DORADO (Sust+ RC) | M49: =+M41+M47 -> 0
D50: TAE | E50: =+IF(ISERROR(((1+(E51/12))^12)-1),"",((1+(E51/12))^12)-1) ->  | K50: EG-18 M (< 1600 CC) 2+2 | M50: =+SEG!M2 -> 0
D51: TIR | E51: =+IRR(E52:E172,0.0025)*12 ->  | K51: EG-18 M (1601-2000 CC) 2+2 | M51: =+SEG!M3 -> 0
D52: 0 | E52: =+IF(H35=1,-F44,-F44+F43) -> -150 | K52: EG-18 M (2001-3200 CC) 2+2 | M52: =+SEG!M4 -> 0
D53: 1 | E53: =+IF(D53<($F$48-$F$45),$E$21,IF(D53<($F$48+1),$E$23,0)) ->  | K53: EG-18 M (< 1600 CC) 3+2 | M53: =+SEG!M5 -> 0
D54: 2 | E54: =+IF(D54<($F$48-$F$45),$E$21,IF(D54<($F$48+1),$E$23,0)) ->  | K54: EG-18 M (1601-2000 CC) 3+2 | M54: =+SEG!M6 -> 0
D55: 3 | K55: EG-18 M (2001-3200 CC) 3+2 | M55: =+SEG!M7 -> 0
D56: 4 | K56: EG +18 M (< 1600 CC) 1+1 | M56: =+SEG!M8 -> 0
D57: 5 | K57: EG +18 M (1601-2000 CC) 1+1 | M57: =+SEG!M9 -> 0
D58: 6 | K58: EG +18 M (2001-3200 CC) 1+1 | M58: =+SEG!M10 -> 0
D59: 7 | K59: PPP + EG-18 M (< 1600 CC) 2+2 | M59: =+M50+$M$36 -> 0
D60: 8 | K60: PPP + EG-18 M (1601-2000 CC) 2+2 | M60: =+M51+$M$36 -> 0
D61: 9 | K61: PPP + EG-18 M (2001-3200 CC) 2+2 | M61: 0
D62: 10 | K62: PPP + EG-18 M (< 1600 CC) 3+2 | M62: 0
D63: 11 | K63: PPP + EG-18 M (1601-2000 CC) 3+2 | M63: 0
D64: 12 | K64: PPP + EG-18 M (2001-3200 CC) 3+2 | M64: 0
D65: 13 | K65: PPP + EG +18 M (< 1600 CC) 1+1 | M65: 0
D66: 14 | K66: PPP + EG +18 M (1601-2000 CC) 1+1 | M66: 0
D67: 15 | K67: PPP + EG +18 M (2001-3200 CC) 1+1 | M67: 0
D68: 16 | K68: Desempleo + PPP + EG-18 M (< 1600 CC) 2+2 | M68: =+M50+$M$39 -> 0
D69: 17 | K69: Desempleo + PPP + EG-18 M (1601-2000 CC) 2+2 | M69: =+M51+$M$39 -> 0
D70: 18 | K70: Desempleo + PPP + EG-18 M (2001-3200 CC) 2+2 | M70: 0
D71: 19 | K71: Desempleo + PPP + EG-18 M (< 1600 CC) 3+2 | M71: 0
D72: 20 | K72: Desempleo + PPP + EG-18 M (1601-2000 CC) 3+2 | M72: 0
D73: 21 | K73: Desempleo + PPP + EG-18 M (2001-3200 CC) 3+2 | M73: 0
D74: 22 | K74: Desempleo + PPP + EG +18 M (< 1600 CC) 1+1 | M74: 0
D75: 23 | K75: Desempleo + PPP + EG +18 M (1601-2000 CC) 1+1 | M75: 0
D76: 24 | K76: Desempleo + PPP + EG +18 M (2001-3200 CC) 1+1 | M76: 0
D77: 25
D78: 26
D79: 27
D80: 28
D81: 29
D82: 30
D83: 31
D84: 32
D85: 33
D86: 34
D87: 35
D88: 36
D89: 37
D90: 38
D91: 39
D92: 40
D93: 41
D94: 42
D95: 43
D96: 44
D97: 45
D98: 46
D99: 47
D100: 48
D101: 49
D102: 50
D103: 51
D104: 52
D105: 53
D106: 54
D107: 55
D108: 56
D109: 57
D110: 58
D111: 59
D112: 60
D113: 61 | E113: 0
D114: 62 | E114: 0
D115: 63 | E115: 0
D116: 64 | E116: 0
D117: 65 | E117: 0
D118: 66 | E118: =+IF(D118<($F$48-$F$45),$E$21,IF(D118<($F$48+1),$E$23,0)) -> 0
D119: 67 | E119: 0
D120: 68 | E120: 0
D121: 69 | E121: 0
D122: 70 | E122: 0
D123: 71 | E123: 0
D124: 72 | E124: 0
D125: 73 | E125: 0
D126: 74 | E126: 0
D127: 75 | E127: 0
D128: 76 | E128: 0
D129: 77 | E129: 0
D130: 78 | E130: 0
D131: 79 | E131: 0
D132: 80 | E132: 0
D133: 81 | E133: 0
D134: 82 | E134: 0
D135: 83 | E135: 0
D136: 84 | E136: 0
D137: 85 | E137: 0
D138: 86 | E138: 0
D139: 87 | E139: 0
D140: 88 | E140: 0
D141: 89 | E141: 0
D142: 90 | E142: 0
D143: 91 | E143: 0
D144: 92 | E144: 0
D145: 93 | E145: 0
D146: 94 | E146: 0
D147: 95 | E147: 0
D148: 96 | E148: 0
D149: 97 | E149: 0
D150: 98 | E150: 0
D151: 99 | E151: 0
D152: 100 | E152: 0
D153: 101 | E153: 0
D154: 102 | E154: 0
D155: 103 | E155: 0
D156: 104 | E156: 0
D157: 105 | E157: 0
D158: 106 | E158: 0
D159: 107 | E159: 0
D160: 108 | E160: 0
D161: 109 | E161: 0
D162: 110 | E162: 0
D163: 111 | E163: 0
D164: 112 | E164: 0
D165: 113 | E165: 0
D166: 114 | E166: 0
D167: 115 | E167: 0
D168: 116 | E168: 0
D169: 117 | E169: 0
D170: 118 | E170: 0
D171: 119 | E171: 0
D172: 120 | E172: 0

Sheet LEASING SELECCION (hidden)
C1: volver | I1: BBVA Finanzia
C3: SIMULADOR OPERACIONES DE LEASING SELECCIÓN
C6: Precio del Bien | F6: Entrada
C8: Importe a Financiar | E8: =+E6-G6 -> 0
C10: TIN
C12: Comisión de Apertura | F12: Comisión de Estudio
C14: Plazo Total
C16: VR Intermedio | F16: Momento
C18: VR Final | E18: 1 Cuota | F18: Momento | G18: =IF(E14<C20,"Revise Plazo",+E14) -> 0
C20: =+N45 -> 0 | D20: Cuotas Mensuales | F20: =IF(ISERROR(IF(E14<C20,"Revise Datos",IF(E6<0,"Revise Datos",+PMT(E10/12,C20,-E8,E16,1)))),"",IF(E14<C20,"Revise Datos",IF(E6<0,"Revise Datos",+PMT(E10/12,C20,-E8,E16,1)))) ->  | G20: =+IF(F20="","",IF(N45>=E14,"Operación Inviable","")) -> 
C22: =+E14-C20 -> 0 | D22: =+D20 -> Cuotas Mensuales | F22: =IF(E14=C20," ",IF(C22<0,"Revise Datos",IF(E16<0,"Revise Datos",+PMT(E10/12,C22+1,-E16,0,1)))) ->  | G22: =+IF(F20>F22,"Revise Datos: Amortizaciones Decrecientes"," ") -> 
C43: PLAZO | E43: =+IF(E44=1,12,IF(E44=2,24,IF(E44=3,36,IF(E44=4,48,60)))) -> 60
E44: 5 | J44: plazos intermedios | K44: 1 | L44: 1
L45: Plazo VR | N45: =INDEX(J45:J49,K44,1) -> 0
J46: 24 | K46: 0.55 | L46: % VR | N46: =INDEX(K45:K49,K44,1) -> 0
J47: 36 | K47: 0.5
J48: 48 | K48: 0.45
J49: 60 | K49: 0.4

Sheet SEG (hidden)
A1: Seguros | B1: 2021-04-01
A2: Plazo de la Financiación. Hasta (meses): | B2: PPP | C2: ST | D2: VIDA+ IT | E2: DESEMPLEO | F2: SUSTITUCIÓN | G2: RETIRADA CARNET | H2: EG V0 | J2: PPP-SENIOR(M) | K2: EG-18 M (< 1600 CC) 2+2 | M2: 0
A3: 1 | B3: 0.0049182 | C3: 0.0013067 | D3: 0.04190966 | E3: 0.04190966 | F3: 0.000314 | G3: 0.003461 | H3: 257.51 | J3: 0.0101645 | K3: EG-18 M (1601-2000 CC) 2+2 | M3: 0
A4: 2 | B4: 0.0049182 | C4: 0.0021591 | D4: 0.04190966 | E4: 0.04190966 | F4: 0.000628 | G4: 0.003461 | H4: 257.51 | J4: 0.0101645 | K4: EG-18 M (2001-3200 CC) 2+2 | M4: 0
A5: 3 | B5: 0.0049182 | C5: 0.0030111 | D5: 0.04190966 | E5: 0.04190966 | F5: 0.000942 | G5: 0.003461 | H5: 257.51 | J5: 0.0101645 | K5: EG-18 M (< 1600 CC) 3+2 | M5: 0
A6: 4 | B6: 0.0049182 | C6: 0.0038635 | D6: 0.04190966 | E6: 0.04190966 | F6: 0.001256 | G6: 0.003461 | H6: 257.51 | J6: 0.0101645 | K6: EG-18 M (1601-2000 CC) 3+2 | M6: 0
A7: 5 | B7: 0.0049182 | C7: 0.0047158 | D7: 0.04190966 | E7: 0.04190966 | F7: 0.00157 | G7: 0.003461 | H7: 257.51 | J7: 0.0101645 | K7: EG-18 M (2001-3200 CC) 3+2 | M7: 0
A8: 6 | B8: 0.0049182 | C8: 0.0055679 | D8: 0.04190966 | E8: 0.04190966 | F8: 0.001884 | G8: 0.003461 | H8: 257.51 | J8: 0.0101645 | K8: EG +18 M (< 1600 CC) 1+1 | M8: 0
A9: 7 | B9: 0.0092465 | C9: 0.0064202 | D9: 0.0461114 | E9: 0.0461114 | F9: 0.002198 | G9: 0.003461 | H9: 257.51 | J9: 0.0193417 | K9: EG +18 M (1601-2000 CC) 1+1 | M9: 0
A10: 8 | B10: 0.0092465 | C10: 0.0072725 | D10: 0.0461114 | E10: 0.0461114 | F10: 0.002512 | G10: 0.003461 | H10: 257.51 | J10: 0.0193417 | K10: EG +18 M (2001-3200 CC) 1+1 | M10: 0
A11: 9 | B11: 0.0092465 | C11: 0.0081246 | D11: 0.0461114 | E11: 0.0461114 | F11: 0.002826 | G11: 0.003461 | H11: 257.51 | J11: 0.0193417
A12: 10 | B12: 0.0092465 | C12: 0.0089769 | D12: 0.0461114 | E12: 0.0461114 | F12: 0.00314 | G12: 0.003461 | H12: 257.51 | J12: 0.0193417
A13: 11 | B13: 0.0092465 | C13: 0.0098293 | D13: 0.0461114 | E13: 0.0461114 | F13: 0.003454 | G13: 0.003461 | H13: 257.51 | J13: 0.0193417
A14: 12 | B14: 0.0092465 | C14: 0.0106814 | D14: 0.0461114 | E14: 0.0461114 | F14: 0.003768 | G14: 0.003461 | H14: 257.51 | J14: 0.0193417
A15: 13 | B15: 0.0138212 | C15: 0.0119881 | D15: 0.05061563 | E15: 0.05061563 | F15: 0.004082 | G15: 0.006922 | H15: 257.51 | J15: 0.029278
A16: 14 | B16: 0.0138212 | C16: 0.0128405 | D16: 0.05061563 | E16: 0.05061563 | F16: 0.004396 | G16: 0.006922 | H16: 257.51 | J16: 0.029278
A17: 15 | B17: 0.0138212 | C17: 0.0136926 | D17: 0.05061563 | E17: 0.05061563 | F17: 0.00471 | G17: 0.006922 | H17: 257.51 | J17: 0.029278
A18: 16 | B18: 0.0138212 | C18: 0.0145448 | D18: 0.05061563 | E18: 0.05061563 | F18: 0.005024 | G18: 0.006922 | H18: 257.51 | J18: 0.029278
A19: 17 | B19: 0.0138212 | C19: 0.0153971 | D19: 0.05061563 | E19: 0.05061563 | F19: 0.005338 | G19: 0.006922 | H19: 257.51 | J19: 0.029278
A20: 18 | B20: 0.0138212 | C20: 0.0162494 | D20: 0.05061563 | E20: 0.05061563 | F20: 0.005652 | G20: 0.006922 | H20: 257.51 | J20: 0.029278
A21: 19 | B21: 0.0186197 | C21: 0.0171016 | D21: 0.05532862 | E21: 0.05532862 | F21: 0.005966 | G21: 0.006922 | H21: 257.51 | J21: 0.0399546
A22: 20 | B22: 0.0186197 | C22: 0.0179539 | D22: 0.05532862 | E22: 0.05532862 | F22: 0.00628 | G22: 0.006922 | H22: 257.51 | J22: 0.0399546
A23: 21 | B23: 0.0186197 | C23: 0.0188061 | D23: 0.05532862 | E23: 0.05532862 | F23: 0.006594 | G23: 0.006922 | H23: 257.51 | J23: 0.0399546
A24: 22 | B24: 0.0186197 | C24: 0.0196583 | D24: 0.05532862 | E24: 0.05532862 | F24: 0.006908 | G24: 0.006922 | H24: 257.51 | J24: 0.0399546
A25: 23 | B25: 0.0186197 | C25: 0.0205106 | D25: 0.05532862 | E25: 0.05532862 | F25: 0.007222 | G25: 0.006922 | H25: 257.51 | J25: 0.0399546
A26: 24 | B26: 0.0186197 | C26: 0.0213628 | D26: 0.05532862 | E26: 0.05532862 | F26: 0.007536 | G26: 0.006922 | H26: 257.51 | J26: 0.0399546
A27: 25 | B27: 0.0236773 | C27: 0.0226695 | D27: 0.06035101 | E27: 0.06035101 | F27: 0.00785 | G27: 0.010383 | H27: 257.51 | J27: 0.0514993
A28: 26 | B28: 0.0236773 | C28: 0.0235219 | D28: 0.06035101 | E28: 0.06035101 | F28: 0.008164 | G28: 0.010383 | H28: 257.51 | J28: 0.0514993
A29: 27 | B29: 0.0236773 | C29: 0.024374 | D29: 0.06035101 | E29: 0.06035101 | F29: 0.008478 | G29: 0.010383 | H29: 257.51 | J29: 0.0514993
A30: 28 | B30: 0.0236773 | C30: 0.0252262 | D30: 0.06035101 | E30: 0.06035101 | F30: 0.008792 | G30: 0.010383 | H30: 257.51 | J30: 0.0514993
A31: 29 | B31: 0.0236773 | C31: 0.0260787 | D31: 0.06035101 | E31: 0.06035101 | F31: 0.009106 | G31: 0.010383 | H31: 257.51 | J31: 0.0514993
A32: 30 | B32: 0.0236773 | C32: 0.0269306 | D32: 0.06035101 | E32: 0.06035101 | F32: 0.00942 | G32: 0.010383 | H32: 257.51 | J32: 0.0514993
A33: 31 | B33: 0.0289894 | C33: 0.0277829 | D33: 0.0654665 | E33: 0.0654665 | F33: 0.009734 | G33: 0.010383 | H33: 257.51 | J33: 0.0639415
A34: 32 | B34: 0.0289894 | C34: 0.0286354 | D34: 0.0654665 | E34: 0.0654665 | F34: 0.010048 | G34: 0.010383 | H34: 257.51 | J34: 0.0639415
A35: 33 | B35: 0.0289894 | C35: 0.0294875 | D35: 0.0654665 | E35: 0.0654665 | F35: 0.010362 | G35: 0.010383 | H35: 257.51 | J35: 0.0639415
A36: 34 | B36: 0.0289894 | C36: 0.0303397 | D36: 0.0654665 | E36: 0.0654665 | F36: 0.010676 | G36: 0.010383 | H36: 257.51 | J36: 0.0639415
A37: 35 | B37: 0.0289894 | C37: 0.031192 | D37: 0.0654665 | E37: 0.0654665 | F37: 0.01099 | G37: 0.010383 | H37: 257.51 | J37: 0.0639415
A38: 36 | B38: 0.0289894 | C38: 0.0320443 | D38: 0.0654665 | E38: 0.0654665 | F38: 0.011304 | G38: 0.010383 | H38: 257.51 | J38: 0.0639415
A39: 37 | B39: 0.0345866 | C39: 0.0333509 | D39: 0.07089138 | E39: 0.07089138 | F39: 0.011618 | G39: 0.013844 | H39: 257.51 | J39: 0.0774156
A40: 38 | B40: 0.0345866 | C40: 0.0342032 | D40: 0.07089138 | E40: 0.07089138 | F40: 0.011932 | G40: 0.013844 | H40: 257.51 | J40: 0.0774156
A41: 39 | B41: 0.0345866 | C41: 0.0350556 | D41: 0.07089138 | E41: 0.07089138 | F41: 0.012246 | G41: 0.013844 | H41: 257.51 | J41: 0.0774156
A42: 40 | B42: 0.0345866 | C42: 0.0359076 | D42: 0.07089138 | E42: 0.07089138 | F42: 0.01256 | G42: 0.013844 | H42: 257.51 | J42: 0.0774156
A43: 41 | B43: 0.0345866 | C43: 0.0367599 | D43: 0.07089138 | E43: 0.07089138 | F43: 0.012874 | G43: 0.013844 | H43: 257.51 | J43: 0.0774156
A44: 42 | B44: 0.0345866 | C44: 0.0376123 | D44: 0.07089138 | E44: 0.07089138 | F44: 0.013188 | G44: 0.013844 | H44: 257.51 | J44: 0.0774156
A45: 43 | B45: 0.0404708 | C45: 0.0384644 | D45: 0.07651752 | E45: 0.07651752 | F45: 0.013502 | G45: 0.013844 | H45: 257.51 | J45: 0.09198
A46: 44 | B46: 0.0404708 | C46: 0.0393168 | D46: 0.07651752 | E46: 0.07651752 | F46: 0.013816 | G46: 0.013844 | H46: 257.51 | J46: 0.09198
A47: 45 | B47: 0.0404708 | C47: 0.0401687 | D47: 0.07651752 | E47: 0.07651752 | F47: 0.01413 | G47: 0.013844 | H47: 257.51 | J47: 0.09198
A48: 46 | B48: 0.0404708 | C48: 0.0410212 | D48: 0.07651752 | E48: 0.07651752 | F48: 0.014444 | G48: 0.013844 | H48: 257.51 | J48: 0.09198
A49: 47 | B49: 0.0404708 | C49: 0.0418735 | D49: 0.07651752 | E49: 0.07651752 | F49: 0.014758 | G49: 0.013844 | H49: 257.51 | J49: 0.09198
A50: 48 | B50: 0.0404708 | C50: 0.0427256 | D50: 0.07651752 | E50: 0.07651752 | F50: 0.015072 | G50: 0.013844 | H50: 257.51 | J50: 0.09198
A51: 49 | B51: 0.0466723 | C51: 0.0440324 | D51: 0.08255368 | E51: 0.08255368 | F51: 0.015386 | G51: 0.017305 | H51: 257.51 | J51: 0.1077914
A52: 50 | B52: 0.0466723 | C52: 0.0448846 | D52: 0.08255368 | E52: 0.08255368 | F52: 0.0157 | G52: 0.017305 | H52: 257.51 | J52: 0.1077914
A53: 51 | B53: 0.0466723 | C53: 0.0457368 | D53: 0.08255368 | E53: 0.08255368 | F53: 0.016014 | G53: 0.017305 | H53: 257.51 | J53: 0.1077914
A54: 52 | B54: 0.0466723 | C54: 0.046589 | D54: 0.08255368 | E54: 0.08255368 | F54: 0.016328 | G54: 0.017305 | H54: 257.51 | J54: 0.1077914
A55: 53 | B55: 0.0466723 | C55: 0.0474414 | D55: 0.08255368 | E55: 0.08255368 | F55: 0.016642 | G55: 0.017305 | H55: 257.51 | J55: 0.1077914
A56: 54 | B56: 0.0466723 | C56: 0.0482938 | D56: 0.08255368 | E56: 0.08255368 | F56: 0.016956 | G56: 0.017305 | H56: 257.51 | J56: 0.1077914
A57: 55 | B57: 0.0531974 | C57: 0.0491457 | D57: 0.08879108 | E57: 0.08879108 | F57: 0.01727 | G57: 0.017305 | H57: 257.51 | J57: 0.1249397
A58: 56 | B58: 0.0531974 | C58: 0.0499981 | D58: 0.08879108 | E58: 0.08879108 | F58: 0.017584 | G58: 0.017305 | H58: 257.51 | J58: 0.1249397
A59: 57 | B59: 0.0531974 | C59: 0.0508503 | D59: 0.08879108 | E59: 0.08879108 | F59: 0.017898 | G59: 0.017305 | H59: 257.51 | J59: 0.1249397
A60: 58 | B60: 0.0531974 | C60: 0.0517024 | D60: 0.08879108 | E60: 0.08879108 | F60: 0.018212 | G60: 0.017305 | H60: 257.51 | J60: 0.1249397
A61: 59 | B61: 0.0531974 | C61: 0.0525549 | D61: 0.08879108 | E61: 0.08879108 | F61: 0.018526 | G61: 0.017305 | H61: 257.51 | J61: 0.1249397
A62: 60 | B62: 0.0531974 | C62: 0.053407 | D62: 0.08879108 | E62: 0.08879108 | F62: 0.01884 | G62: 0.017305 | H62: 257.51 | J62: 0.1249397
A63: 61 | B63: 0.051011 | C63: 0.0547136 | D63: 0.09026236 | E63: 0.09026236 | F63: 0.019154 | G63: 0.020766 | H63: 257.51 | J63: 0.1436167
A64: 62 | B64: 0.051011 | C64: 0.0555661 | D64: 0.09026236 | E64: 0.09026236 | F64: 0.019468 | G64: 0.020766 | H64: 257.51 | J64: 0.1436167
A65: 63 | B65: 0.051011 | C65: 0.0564182 | D65: 0.09026236 | E65: 0.09026236 | F65: 0.019782 | G65: 0.020766 | H65: 257.51 | J65: 0.1436167
A66: 64 | B66: 0.051011 | C66: 0.0572705 | D66: 0.09026236 | E66: 0.09026236 | F66: 0.020096 | G66: 0.020766 | H66: 257.51 | J66: 0.1436167
A67: 65 | B67: 0.051011 | C67: 0.0581228 | D67: 0.09026236 | E67: 0.09026236 | F67: 0.02041 | G67: 0.020766 | H67: 257.51 | J67: 0.1436167
A68: 66 | B68: 0.051011 | C68: 0.0589748 | D68: 0.09026236 | E68: 0.09026236 | F68: 0.020724 | G68: 0.020766 | H68: 257.51 | J68: 0.1436167
A69: 67 | B69: 0.0571363 | C69: 0.0598272 | D69: 0.09269194 | E69: 0.09269194 | F69: 0.021038 | G69: 0.020766 | H69: 257.51 | J69: 0.1639529
A70: 68 | B70: 0.0571363 | C70: 0.0606795 | D70: 0.09269194 | E70: 0.09269194 | F70: 0.021352 | G70: 0.020766 | H70: 257.51 | J70: 0.1639529
A71: 69 | B71: 0.0571363 | C71: 0.0615317 | D71: 0.09269194 | E71: 0.09269194 | F71: 0.021666 | G71: 0.020766 | H71: 257.51 | J71: 0.1639529
A72: 70 | B72: 0.0571363 | C72: 0.0623839 | D72: 0.09269194 | E72: 0.09269194 | F72: 0.02198 | G72: 0.020766 | H72: 257.51 | J72: 0.1639529
A73: 71 | B73: 0.0571363 | C73: 0.0632363 | D73: 0.09269194 | E73: 0.09269194 | F73: 0.022294 | G73: 0.020766 | H73: 257.51 | J73: 0.1639529
A74: 72 | B74: 0.0571363 | C74: 0.0640883 | D74: 0.09269194 | E74: 0.09269194 | F74: 0.022608 | G74: 0.020766 | H74: 257.51 | J74: 0.1639529
A75: 73 | B75: 0.0635907 | C75: 0.065395 | D75: 0.09574784 | E75: 0.09574784 | F75: 0.022922 | G75: 0.024227 | H75: 257.51 | J75: 0.1861916
A76: 74 | B76: 0.0635907 | C76: 0.0662474 | D76: 0.09574784 | E76: 0.09574784 | F76: 0.023236 | G76: 0.024227 | H76: 257.51 | J76: 0.1861916
A77: 75 | B77: 0.0635907 | C77: 0.0670998 | D77: 0.09574784 | E77: 0.09574784 | F77: 0.02355 | G77: 0.024227 | H77: 257.51 | J77: 0.1861916
A78: 76 | B78: 0.0635907 | C78: 0.0679519 | D78: 0.09574784 | E78: 0.09574784 | F78: 0.023864 | G78: 0.024227 | H78: 257.51 | J78: 0.1861916
A79: 77 | B79: 0.0635907 | C79: 0.0688042 | D79: 0.09574784 | E79: 0.09574784 | F79: 0.024178 | G79: 0.024227 | H79: 257.51 | J79: 0.1861916
A80: 78 | B80: 0.0635907 | C80: 0.0696564 | D80: 0.09574784 | E80: 0.09574784 | F80: 0.024492 | G80: 0.024227 | H80: 257.51 | J80: 0.1861916
A81: 79 | B81: 0.0703841 | C81: 0.0705085 | D81: 0.09953821 | E81: 0.09953821 | F81: 0.024806 | G81: 0.024227 | H81: 257.51 | J81: 0.2105195
A82: 80 | B82: 0.0703841 | C82: 0.0713609 | D82: 0.09953821 | E82: 0.09953821 | F82: 0.02512 | G82: 0.024227 | H82: 257.51 | J82: 0.2105195
A83: 81 | B83: 0.0703841 | C83: 0.0722133 | D83: 0.09953821 | E83: 0.09953821 | F83: 0.025434 | G83: 0.024227 | H83: 257.51 | J83: 0.2105195
A84: 82 | B84: 0.0703841 | C84: 0.0730653 | D84: 0.09953821 | E84: 0.09953821 | F84: 0.025748 | G84: 0.024227 | H84: 257.51 | J84: 0.2105195
A85: 83 | B85: 0.0703841 | C85: 0.0739175 | D85: 0.09953821 | E85: 0.09953821 | F85: 0.026062 | G85: 0.024227 | H85: 257.51 | J85: 0.2105195
A86: 84 | B86: 0.0703841 | C86: 0.0747698 | D86: 0.09953821 | E86: 0.09953821 | F86: 0.026376 | G86: 0.024227 | H86: 257.51 | J86: 0.2105195
A87: 85 | B87: 0.0712808 | C87: 0.0760766 | D87: 0.1039549 | E87: 0.1039549 | F87: 0.02669 | G87: 0.027688 | H87: 257.51 | J87: 0.2372544
A88: 86 | B88: 0.0712808 | C88: 0.0769289 | D88: 0.1039549 | E88: 0.1039549 | F88: 0.027004 | G88: 0.027688 | H88: 257.51 | J88: 0.2372544
A89: 87 | B89: 0.0712808 | C89: 0.077781 | D89: 0.1039549 | E89: 0.1039549 | F89: 0.027318 | G89: 0.027688 | H89: 257.51 | J89: 0.2372544
A90: 88 | B90: 0.0712808 | C90: 0.0786332 | D90: 0.1039549 | E90: 0.1039549 | F90: 0.027632 | G90: 0.027688 | H90: 257.51 | J90: 0.2372544
A91: 89 | B91: 0.0712808 | C91: 0.0794856 | D91: 0.1039549 | E91: 0.1039549 | F91: 0.027946 | G91: 0.027688 | H91: 257.51 | J91: 0.2372544
A92: 90 | B92: 0.0712808 | C92: 0.0803378 | D92: 0.1039549 | E92: 0.1039549 | F92: 0.02826 | G92: 0.027688 | H92: 257.51 | J92: 0.2372544
A93: 91 | B93: 0.078198 | C93: 0.08119 | D93: 0.10888977 | E93: 0.10888977 | F93: 0.028574 | G93: 0.027688 | H93: 257.51 | J93: 0.2666647
A94: 92 | B94: 0.078198 | C94: 0.0820424 | D94: 0.10888977 | E94: 0.10888977 | F94: 0.028888 | G94: 0.027688 | H94: 257.51 | J94: 0.2666647
A95: 93 | B95: 0.078198 | C95: 0.0828943 | D95: 0.10888977 | E95: 0.10888977 | F95: 0.029202 | G95: 0.027688 | H95: 257.51 | J95: 0.2666647
A96: 94 | B96: 0.078198 | C96: 0.0837466 | D96: 0.10888977 | E96: 0.10888977 | F96: 0.029516 | G96: 0.027688 | H96: 257.51 | J96: 0.2666647
A97: 95 | B97: 0.078198 | C97: 0.0845991 | D97: 0.10888977 | E97: 0.10888977 | F97: 0.02983 | G97: 0.027688 | H97: 257.51 | J97: 0.2666647
A98: 96 | B98: 0.078198 | C98: 0.0854512 | D98: 0.10888977 | E98: 0.10888977 | F98: 0.030144 | G98: 0.027688 | H98: 257.51 | J98: 0.2666647
A99: 97 | B99: 0.0854911 | C99: 0.0867579 | D99: 0.11434281 | E99: 0.11434281 | F99: 0.030458 | G99: 0.031149 | H99: 257.51 | J99: 0.2991784
A100: 98 | B100: 0.0854911 | C100: 0.0876103 | D100: 0.11434281 | E100: 0.11434281 | F100: 0.030772 | G100: 0.031149 | H100: 257.51 | J100: 0.2991784
A101: 99 | B101: 0.0854911 | C101: 0.0884625 | D101: 0.11434281 | E101: 0.11434281 | F101: 0.031086 | G101: 0.031149 | H101: 257.51 | J101: 0.2991784
A102: 100 | B102: 0.0854911 | C102: 0.0893146 | D102: 0.11434281 | E102: 0.11434281 | F102: 0.0314 | G102: 0.031149 | H102: 257.51 | J102: 0.2991784
A103: 101 | B103: 0.0854911 | C103: 0.0901669 | D103: 0.11434281 | E103: 0.11434281 | F103: 0.031714 | G103: 0.031149 | H103: 257.51 | J103: 0.2991784
A104: 102 | B104: 0.0854911 | C104: 0.0910193 | D104: 0.11434281 | E104: 0.11434281 | F104: 0.032028 | G104: 0.031149 | H104: 257.51 | J104: 0.2991784
A105: 103 | B105: 0.0931745 | C105: 0.0918714 | D105: 0.12030649 | E105: 0.12030649 | F105: 0.032342 | G105: 0.031149 | H105: 257.51 | J105: 0.3351872
A106: 104 | B106: 0.0931745 | C106: 0.0927237 | D106: 0.12030649 | E106: 0.12030649 | F106: 0.032656 | G106: 0.031149 | H106: 257.51 | J106: 0.3351872
A107: 105 | B107: 0.0931745 | C107: 0.0935759 | D107: 0.12030649 | E107: 0.12030649 | F107: 0.03297 | G107: 0.031149 | H107: 257.51 | J107: 0.3351872
A108: 106 | B108: 0.0931745 | C108: 0.094428 | D108: 0.12030649 | E108: 0.12030649 | F108: 0.033284 | G108: 0.031149 | H108: 257.51 | J108: 0.3351872
A109: 107 | B109: 0.0931745 | C109: 0.0952805 | D109: 0.12030649 | E109: 0.12030649 | F109: 0.033598 | G109: 0.031149 | H109: 257.51 | J109: 0.3351872
A110: 108 | B110: 0.0931745 | C110: 0.0961327 | D110: 0.12030649 | E110: 0.12030649 | F110: 0.033912 | G110: 0.031149 | H110: 257.51 | J110: 0.3351872
A111: 109 | B111: 0.1012817 | C111: 0.0974395 | D111: 0.12678835 | E111: 0.12678835 | F111: 0.034226 | G111: 0.03461 | H111: 257.51 | J111: 0.3752867
A112: 110 | B112: 0.1012817 | C112: 0.0982917 | D112: 0.12678835 | E112: 0.12678835 | F112: 0.03454 | G112: 0.03461 | H112: 257.51 | J112: 0.3752867
A113: 111 | B113: 0.1012817 | C113: 0.0991439 | D113: 0.12678835 | E113: 0.12678835 | F113: 0.034854 | G113: 0.03461 | H113: 257.51 | J113: 0.3752867
A114: 112 | B114: 0.1012817 | C114: 0.0999961 | D114: 0.12678835 | E114: 0.12678835 | F114: 0.035168 | G114: 0.03461 | H114: 257.51 | J114: 0.3752867
A115: 113 | B115: 0.1012817 | C115: 0.1008485 | D115: 0.12678835 | E115: 0.12678835 | F115: 0.035482 | G115: 0.03461 | H115: 257.51 | J115: 0.3752867
A116: 114 | B116: 0.1012817 | C116: 0.1017005 | D116: 0.12678835 | E116: 0.12678835 | F116: 0.035796 | G116: 0.03461 | H116: 257.51 | J116: 0.3752867
A117: 115 | B117: 0.1098308 | C117: 0.1025527 | D117: 0.13368023 | E117: 0.13368023 | F117: 0.03611 | G117: 0.03461 | H117: 257.51 | J117: 0.4200633
A118: 116 | B118: 0.1098308 | C118: 0.1034051 | D118: 0.13368023 | E118: 0.13368023 | F118: 0.036424 | G118: 0.03461 | H118: 257.51 | J118: 0.4200633
A119: 117 | B119: 0.1098308 | C119: 0.1042574 | D119: 0.13368023 | E119: 0.13368023 | F119: 0.036738 | G119: 0.03461 | H119: 257.51 | J119: 0.4200633
A120: 118 | B120: 0.1098308 | C120: 0.1051096 | D120: 0.13368023 | E120: 0.13368023 | F120: 0.037052 | G120: 0.03461 | H120: 257.51 | J120: 0.4200633
A121: 119 | B121: 0.1098308 | C121: 0.1059619 | D121: 0.13368023 | E121: 0.13368023 | F121: 0.037366 | G121: 0.03461 | H121: 257.51 | J121: 0.4200633
A122: 120 | B122: 0.1098308 | C122: 0.1068141 | D122: 0.13368023 | E122: 0.13368023 | F122: 0.03768 | G122: 0.03461 | H122: 257.51 | J122: 0.4200633
